Workbook

Sheet sht mgr
A1: File Name | B1: Model Name | C1: Title Property | D1: Comments Property | E1: PID | F1: Sheet Title | G1: Sub-Title | H1: Sub-Title 2 | I1: Sheet Number | J1: Sheet Total | K1: Subset Number | L1: Subset Total | M1: Designer | N1: Checker | O1: Reviewer | P1: Review Date | Q1: SFN1 | R1: SFN2 | S1: Scale2 | T1: Scale3 | U1: Scale4 | V1: CRS | W1: DesignAgencyCellName | X1: XBaseLength | Y1: YBaseLength | Z1: AgencyBoxBaseLowerXDist | AA1: AgencyBoxBaseLowerYDist | AB1: AgencyBoxBaseWidth | AC1: AgencyBoxBaseHeight | AD1: PlacedAgencyCells
A2: 01 Active Projects\District 06\Morrow\96213\400-Engineering\Roadway\Sheets\96213_GT001.dgn | B2: 96213_GT001 | C2: Roadway Title Sheet | E2: 96213 | F2: PID #96213 MRW-314-(8.11) (20.62) | G2: ---NA--- | H2: ---NA--- | I2: P.1 | J2: =$I$55 -> P.54 | K2: ---NA--- | L2: ---NA--- | M2: AMH | N2: ---NA--- | O2: KLM | P2: 2023-09-12 | Q2: ---NA--- | R2: ---NA--- | S2: ---NA--- | T2: ---NA--- | U2: ---NA--- | V2: MRW-314-(8.11) (20.62) | W2: ODOT_ZEPHYR | X2: 34 | Y2: 22 | Z2: 32 | AA2: 2.5 | AB2: 1.5 | AC2: 2 | AD2: Placed Agency Cells: ODOT_ZEPHYR
A3: 01 Active Projects\District 06\Morrow\96213\400-Engineering\Roadway\Sheets\96213_GY001.dgn | B3: 96213_GY001 | C3: Roadway Typical Sections Sheet | E3: 96213 | F3: TYPICAL SECTIONS | G3: ---NA--- | H3: ---NA--- | I3: P.2 | J3: P.54 | K3: ---NA--- | L3: ---NA--- | M3: AMH | N3: ---NA--- | O3: LW | P3: 2023-08-23 | Q3: ---NA--- | R3: ---NA--- | S3: ---NA--- | T3: ---NA--- | U3: ---NA--- | V3: MRW-314-(8.11) (20.62) | W3: ODOT_ZEPHYR | X3: 34 | Y3: 22 | Z3: 32 | AA3: 2.5 | AB3: 1.5 | AC3: 2 | AD3: Placed Agency Cells: ODOT_ZEPHYR
A4: 01 Active Projects\District 06\Morrow\96213\400-Engineering\Roadway\Sheets\96213_GN001.dgn | B4: 96213_GN001 | C4: Roadway General Notes Sheet | E4: 96213 | F4: GENERAL NOTES | G4: ---NA--- | H4: ---NA--- | I4: P.3 | J4: P.54 | K4: ---NA--- | L4: ---NA--- | M4: AMH | N4: ---NA--- | O4: KLM | P4: 2023-09-12 | Q4: ---NA--- | R4: ---NA--- | S4: ---NA--- | T4: ---NA--- | U4: ---NA--- | V4: MRW-314-(8.11) (20.62) | W4: ODOT_ZEPHYR | X4: 34 | Y4: 22 | Z4: 32 | AA4: 2.5 | AB4: 1.5 | AC4: 2 | AD4: Placed Agency Cells: ODOT_ZEPHYR
A5: 01 Active Projects\District 06\Morrow\96213\400-Engineering\MOT\Sheets\96213_MN001.dgn | B5: 96213_MN001 | C5: MOT Notes Sheet | E5: 96213 | F5: MAINTENANCE OF TRAFFIC NOTES | G5: ---NA--- | H5: ---NA--- | I5: P.4 | J5: P.54 | K5: ---NA--- | L5: ---NA--- | M5: AMH | N5: ---NA--- | O5: VP | P5: 2023-09-14 | Q5: ---NA--- | R5: ---NA--- | S5: ---NA--- | T5: ---NA--- | U5: ---NA--- | V5: MRW-314-(8.11) (20.62) | W5: ODOT_ZEPHYR | X5: 34 | Y5: 22 | Z5: 32 | AA5: 2.5 | AB5: 1.5 | AC5: 2 | AD5: Placed Agency Cells: ODOT_ZEPHYR
A6: 01 Active Projects\District 06\Morrow\96213\400-Engineering\MOT\Sheets\96213_MN001.dgn | B6: 96213_MN002 | C6: MOT Notes Sheet | E6: 96213 | F6: MAINTENANCE OF TRAFFIC NOTES | G6: ---NA--- | H6: ---NA--- | I6: P.5 | J6: P.54 | K6: ---NA--- | L6: ---NA--- | M6: AMH | N6: ---NA--- | O6: VP | P6: 2023-09-14 | Q6: ---NA--- | R6: ---NA--- | S6: ---NA--- | T6: ---NA--- | U6: ---NA--- | V6: MRW-314-(8.11) (20.62) | W6: ODOT_ZEPHYR | X6: 34 | Y6: 22 | Z6: 32 | AA6: 2.5 | AB6: 1.5 | AC6: 2 | AD6: Placed Agency Cells: ODOT_ZEPHYR
A7: 01 Active Projects\District 06\Morrow\96213\400-Engineering\MOT\Sheets\96213_MN001.dgn | B7: 96213_MN003 | C7: MOT Notes Sheet | E7: 96213 | F7: MAINTENANCE OF TRAFFIC NOTES | G7: ---NA--- | H7: ---NA--- | I7: P.6 | J7: P.54 | K7: ---NA--- | L7: ---NA--- | M7: AMH | N7: ---NA--- | O7: VP | P7: 2023-09-14 | Q7: ---NA--- | R7: ---NA--- | S7: ---NA--- | T7: ---NA--- | U7: ---NA--- | V7: MRW-314-(8.11) (20.62) | W7: ODOT_ZEPHYR | X7: 34 | Y7: 22 | Z7: 32 | AA7: 2.5 | AB7: 1.5 | AC7: 2 | AD7: Placed Agency Cells: ODOT_ZEPHYR
A8: 01 Active Projects\District 06\Morrow\96213\400-Engineering\MOT\Sheets\96213_MD001.dgn | B8: 96213_MD001 | C8: MOT Detour Plan Sheet | E8: 96213 | F8: MAINTENANCE OF TRAFFIC PLAN | G8: DETOUR SIGNAGE | H8: ---NA--- | I8: P.7 | J8: P.54 | K8: ---NA--- | L8: ---NA--- | M8: AMH | N8: ---NA--- | O8: VP | P8: 2023-09-14 | Q8: ---NA--- | R8: ---NA--- | S8: ---NA--- | T8: ---NA--- | U8: ---NA--- | V8: MRW-314-(8.11) (20.62) | W8: ODOT_ZEPHYR | X8: 34 | Y8: 22 | Z8: 32 | AA8: 2.5 | AB8: 1.5 | AC8: 2 | AD8: Placed Agency Cells: ODOT_ZEPHYR
A9: 01 Active Projects\District 06\Morrow\96213\400-Engineering\MOT\Sheets\96213_MD001.dgn | B9: 96213_MD002 | C9: MOT Detour Plan Sheet | E9: 96213 | F9: MAINTENANCE OF TRAFFIC PLAN | G9: DETOUR - LOCATION 1 | H9: ---NA--- | I9: P.8 | J9: P.54 | K9: ---NA--- | L9: ---NA--- | M9: AMH | N9: ---NA--- | O9: VP | P9: 2023-09-14 | Q9: ---NA--- | R9: ---NA--- | S9: 1250 | T9: 2500 | U9: 5000 | V9: MRW-314-(8.11) (20.62) | W9: ODOT_ZEPHYR | X9: 34 | Y9: 22 | Z9: 32 | AA9: 2.5 | AB9: 1.5 | AC9: 2 | AD9: Placed Agency Cells: ODOT_ZEPHYR
A10: 01 Active Projects\District 06\Morrow\96213\400-Engineering\MOT\Sheets\96213_MD001.dgn | B10: 96213_MD003 | C10: MOT Detour Plan Sheet | E10: 96213 | F10: MAINTENANCE OF TRAFFIC PLAN | G10: DETOUR PLAN - LOCATION 2 | H10: ---NA--- | I10: P.9 | J10: P.54 | K10: ---NA--- | L10: ---NA--- | M10: AMH | N10: ---NA--- | O10: VP | P10: 2023-09-14 | Q10: ---NA--- | R10: ---NA--- | S10: 1250 | T10: 2500 | U10: 5000 | V10: MRW-314-(8.11) (20.62) | W10: ODOT_ZEPHYR | X10: 34 | Y10: 22 | Z10: 32 | AA10: 2.5 | AB10: 1.5 | AC10: 2 | AD10: Placed Agency Cells: ODOT_ZEPHYR
A11: 01 Active Projects\District 06\Morrow\96213\400-Engineering\Roadway\Sheets\96213_GG001.dgn | B11: 96213_GG001 | C11: Roadway General Summary Sheet | E11: 96213 | F11: GENERAL SUMMARY | G11: ---NA--- | H11: ---NA--- | I11: P.10 | J11: P.54 | K11: ---NA--- | L11: ---NA--- | M11: AMH | N11: ---NA--- | O11: DKR | P11: 2023-08-02 | Q11: ---NA--- | R11: ---NA--- | S11: ---NA--- | T11: ---NA--- | U11: ---NA--- | V11: MRW-314-(8.11) (20.62) | W11: ODOT_ZEPHYR | X11: 34 | Y11: 22 | Z11: 32 | AA11: 2.5 | AB11: 1.5 | AC11: 2 | AD11: Placed Agency Cells: ODOT_ZEPHYR
A12: 01 Active Projects\District 06\Morrow\96213\400-Engineering\Roadway\Sheets\96213_GG001.dgn | B12: 96213_GG002 | C12: Roadway General Summary Sheet | E12: 96213 | F12: GENERAL SUMMARY | G12: ---NA--- | H12: ---NA--- | I12: P.11 | J12: P.54 | K12: ---NA--- | L12: ---NA--- | M12: AMH | N12: ---NA--- | O12: DKR | P12: 2023-08-02 | Q12: ---NA--- | R12: ---NA--- | S12: ---NA--- | T12: ---NA--- | U12: ---NA--- | V12: MRW-314-(8.11) (20.62) | W12: ODOT_ZEPHYR | X12: 34 | Y12: 22 | Z12: 32 | AA12: 2.5 | AB12: 1.5 | AC12: 2 | AD12: Placed Agency Cells: ODOT_ZEPHYR
A13: 01 Active Projects\District 06\Morrow\96213\400-Engineering\Roadway\Sheets\96213_GS001.dgn | B13: 96213_GS001 | C13: Roadway Sub-Summary Sheet | E13: 96213 | F13: PAVEMENT CALCULATIONS | G13: ---NA--- | H13: ---NA--- | I13: P.12 | J13: P.54 | K13: ---NA--- | L13: ---NA--- | M13: AMH | N13: ---NA--- | O13: DKR | P13: 2023-08-02 | Q13: ---NA--- | R13: ---NA--- | S13: ---NA--- | T13: ---NA--- | U13: ---NA--- | V13: MRW-314-(8.11) (20.62) | W13: ODOT_ZEPHYR | X13: 34 | Y13: 22 | Z13: 32 | AA13: 2.5 | AB13: 1.5 | AC13: 2 | AD13: Placed Agency Cells: ODOT_ZEPHYR
A14: 01 Active Projects\District 06\Morrow\96213\400-Engineering\Roadway\Sheets\96213_GS001.dgn | B14: 96213_GS002 | C14: Roadway Sub-Summary Sheet | E14: 96213 | F14: PLAN SUBSUMMARY | G14: ---NA--- | H14: ---NA--- | I14: P.13 | J14: P.54 | K14: ---NA--- | L14: ---NA--- | M14: AMH | N14: ---NA--- | O14: DKR | P14: 2023-08-02 | Q14: ---NA--- | R14: ---NA--- | S14: ---NA--- | T14: ---NA--- | U14: ---NA--- | V14: MRW-314-(8.11) (20.62) | W14: ODOT_ZEPHYR | X14: 34 | Y14: 22 | Z14: 32 | AA14: 2.5 | AB14: 1.5 | AC14: 2 | AD14: Placed Agency Cells: ODOT_ZEPHYR
A15: 01 Active Projects\District 06\Morrow\96213\400-Engineering\Roadway\Sheets\96213_GS001.dgn | B15: 96213_GS003 | C15: Roadway Sub-Summary Sheet | E15: 96213 | F15: EARTHWORK SUBSUMMARY | G15: ---NA--- | H15: ---NA--- | I15: P.14 | J15: P.54 | K15: ---NA--- | L15: ---NA--- | M15: AMH | N15: ---NA--- | O15: DKR | P15: 2023-08-02 | Q15: ---NA--- | R15: ---NA--- | S15: ---NA--- | T15: ---NA--- | U15: ---NA--- | V15: MRW-314-(8.11) (20.62) | W15: ODOT_ZEPHYR | X15: 34 | Y15: 22 | Z15: 32 | AA15: 2.5 | AB15: 1.5 | AC15: 2 | AD15: Placed Agency Cells: ODOT_ZEPHYR
A16: 01 Active Projects\District 06\Morrow\96213\400-Engineering\Roadway\Sheets\96213_GP100.dgn | B16: CLX_SR314 - Plan 2 [Sheet] | C16: Roadway Plan and Profile or Plan Sheet | D16: Location 1 | E16: 96213 | F16: PLAN AND PROFILE - LOCATION 1 | G16: STA. 4+00.00 TO STA. 4+67.44 | H16: ---NA--- | I16: P.15 | J16: P.54 | K16: ---NA--- | L16: ---NA--- | M16: JPH | N16: ---NA--- | O16: KLM | P16: 2023-09-12 | Q16: ---NA--- | R16: ---NA--- | S16: 10 | T16: 20 | U16: 40 | V16: MRW-314-(8.11) (20.62) | W16: ODOT_ZEPHYR | X16: 34 | Y16: 22 | Z16: 32 | AA16: 2.5 | AB16: 1.5 | AC16: 2 | AD16: Placed Agency Cells: ODOT_ZEPHYR
A17: 01 Active Projects\District 06\Morrow\96213\400-Engineering\Roadway\Sheets\96213_GP002.dgn | B17: 96213_GP002 | C17: Roadway Plan and Profile or Plan Sheet | E17: 96213 | F17: PLAN AND PROFILE - LOCATION 2 | G17: STA. 10+00.00 TO 14+50.00 | H17: ---NA--- | I17: P.16 | J17: P.54 | K17: ---NA--- | L17: ---NA--- | M17: AMH | N17: ---NA--- | O17: KLM | P17: 2023-09-12 | Q17: ---NA--- | R17: ---NA--- | S17: 10 | T17: 20 | U17: 40 | V17: MRW-314-(8.11) (20.62) | W17: ODOT_ZEPHYR | X17: ---NA--- | Y17: ---NA--- | Z17: ---NA--- | AA17: ---NA--- | AB17: ---NA--- | AC17: ---NA--- | AD17: Placed Agency Cells: ODOT_ZEPHYR
A18: 01 Active Projects\District 06\Morrow\96213\400-Engineering\Roadway\Sheets\96213_XS100.dgn | B18: CLX_SR315 - 1+00.00 [Sheet] | C18: Roadway Cross Sections Sheet | E18: 96213 | F18: CROSS SECTIONS - LOCATION 1 | G18: STA. 1+00.00 TO STA. 1+50.00 | H18: ---NA--- | I18: P.17 | J18: P.54 | K18: ---NA--- | L18: ---NA--- | M18: JPH | N18: ---NA--- | O18: KLM | P18: 2023-09-12 | Q18: ---NA--- | R18: ---NA--- | S18: ---NA--- | T18: ---NA--- | U18: ---NA--- | V18: MRW-314-(8.11) (20.62) | W18: ODOT_ZEPHYR | X18: 34 | Y18: 22 | Z18: 32 | AA18: 2.5 | AB18: 1.5 | AC18: 2 | AD18: Placed Agency Cells: ODOT_ZEPHYR
A19: 01 Active Projects\District 06\Morrow\96213\400-Engineering\Roadway\Sheets\96213_XS100.dgn | B19: CLX_SR315 - 1+75.00 [Sheet] | C19: Roadway Cross Sections Sheet | E19: 96213 | F19: CROSS SECTIONS - LOCATION 1 | G19: STA. 1+75.00 TO STA. 2+00.00 | H19: ---NA--- | I19: P.18 | J19: P.54 | K19: ---NA--- | L19: ---NA--- | M19: JPH | N19: ---NA--- | O19: KLM | P19: 2023-09-12 | Q19: ---NA--- | R19: ---NA--- | S19: ---NA--- | T19: ---NA--- | U19: ---NA--- | V19: MRW-314-(8.11) (20.62) | W19: ODOT_ZEPHYR | X19: 34 | Y19: 22 | Z19: 32 | AA19: 2.5 | AB19: 1.5 | AC19: 2 | AD19: Placed Agency Cells: ODOT_ZEPHYR
A20: 01 Active Projects\District 06\Morrow\96213\400-Engineering\Roadway\Sheets\96213_XS100.dgn | B20: CLX_SR315 - 2+25.00 [Sheet] | C20: Roadway Cross Sections Sheet | E20: 96213 | F20: CROSS SECTIONS - LOCATION 1 | G20: STA. 2+25.00 TO STA. 2+50.00 | H20: ---NA--- | I20: P.19 | J20: P.54 | K20: ---NA--- | L20: ---NA--- | M20: JPH | N20: ---NA--- | O20: KLM | P20: 2023-09-12 | Q20: ---NA--- | R20: ---NA--- | S20: ---NA--- | T20: ---NA--- | U20: ---NA--- | V20: MRW-314-(8.11) (20.62) | W20: ODOT_ZEPHYR | X20: 34 | Y20: 22 | Z20: 32 | AA20: 2.5 | AB20: 1.5 | AC20: 2 | AD20: Placed Agency Cells: ODOT_ZEPHYR
A21: 01 Active Projects\District 06\Morrow\96213\400-Engineering\Roadway\Sheets\96213_XS100.dgn | B21: CLX_SR315 - 2+75.00 [Sheet] | C21: Roadway Cross Sections Sheet | E21: 96213 | F21: CROSS SECTIONS - LOCATION 1 | G21: STA. 2+75.00 TO STA. 3+00.00 | H21: ---NA--- | I21: P.20 | J21: P.54 | K21: ---NA--- | L21: ---NA--- | M21: JPH | N21: ---NA--- | O21: KLM | P21: 2023-09-12 | Q21: ---NA--- | R21: ---NA--- | S21: ---NA--- | T21: ---NA--- | U21: ---NA--- | V21: MRW-314-(8.11) (20.62) | W21: ODOT_ZEPHYR | X21: 34 | Y21: 22 | Z21: 32 | AA21: 2.5 | AB21: 1.5 | AC21: 2 | AD21: Placed Agency Cells: ODOT_ZEPHYR
A22: 01 Active Projects\District 06\Morrow\96213\400-Engineering\Roadway\Sheets\96213_XS100.dgn | B22: CLX_SR315 - 3+25.00 [Sheet] | C22: Roadway Cross Sections Sheet | E22: 96213 | F22: CROSS SECTIONS - LOCATION 1 | G22: STA. 3+25.00 TO STA. 3+50.00 | H22: ---NA--- | I22: P.21 | J22: P.54 | K22: ---NA--- | L22: ---NA--- | M22: JPH | N22: ---NA--- | O22: KLM | P22: 2023-09-12 | Q22: ---NA--- | R22: ---NA--- | S22: ---NA--- | T22: ---NA--- | U22: ---NA--- | V22: MRW-314-(8.11) (20.62) | W22: ODOT_ZEPHYR | X22: 34 | Y22: 22 | Z22: 32 | AA22: 2.5 | AB22: 1.5 | AC22: 2 | AD22: Placed Agency Cells: ODOT_ZEPHYR
A23: 01 Active Projects\District 06\Morrow\96213\400-Engineering\Roadway\Sheets\96213_XS100.dgn | B23: CLX_SR315 - 3+75.00 [Sheet] | C23: Roadway Cross Sections Sheet | E23: 96213 | F23: CROSS SECTIONS - LOCATION 1 | G23: STA. 3+75.00 TO STA. 4+25.00 | H23: ---NA--- | I23: P.22 | J23: P.54 | K23: ---NA--- | L23: ---NA--- | M23: JPH | N23: ---NA--- | O23: KLM | P23: 2023-09-12 | Q23: ---NA--- | R23: ---NA--- | S23: ---NA--- | T23: ---NA--- | U23: ---NA--- | V23: MRW-314-(8.11) (20.62) | W23: ODOT_ZEPHYR | X23: 34 | Y23: 22 | Z23: 32 | AA23: 2.5 | AB23: 1.5 | AC23: 2 | AD23: Placed Agency Cells: ODOT_ZEPHYR
A24: 01 Active Projects\District 06\Morrow\96213\400-Engineering\Roadway\Sheets\96213_XS100.dgn | B24: CLX_SR315 - 4+50.00 [Sheet] | C24: Roadway Cross Sections Sheet | E24: 96213 | F24: CROSS SECTIONS - LOCATION 1 | G24: STA. 4+50.00 TO STA. 4+67.44 | H24: ---NA--- | I24: P.23 | J24: P.54 | K24: ---NA--- | L24: ---NA--- | M24: JPH | N24: ---NA--- | O24: KLM | P24: 2023-09-12 | Q24: ---NA--- | R24: ---NA--- | S24: ---NA--- | T24: ---NA--- | U24: ---NA--- | V24: MRW-314-(8.11) (20.62) | W24: ODOT_ZEPHYR | X24: 34 | Y24: 22 | Z24: 32 | AA24: 2.5 | AB24: 1.5 | AC24: 2 | AD24: Placed Agency Cells: ODOT_ZEPHYR
A25: 01 Active Projects\District 06\Morrow\96213\400-Engineering\Roadway\Sheets\96213_XS002.dgn | B25: 96213_XS201 | C25: Roadway Cross Sections Sheet | D25: Cross Sections for Bridge MRW-314-2062 | E25: 96213 | F25: CROSS SECTIONS - LOCATION 2 | G25: STA. 10+50.00 TO STA. 11+00.00 | H25: ---NA--- | I25: P.24 | J25: P.54 | K25: ---NA--- | L25: ---NA--- | M25: AMH | N25: ---NA--- | O25: KLM | P25: 2023-09-12 | Q25: ---NA--- | R25: ---NA--- | S25: ---NA--- | T25: ---NA--- | U25: ---NA--- | V25: MRW-314-(8.11) (20.62) | W25: ODOT_ZEPHYR | X25: 34 | Y25: 22 | Z25: 32 | AA25: 2.5 | AB25: 1.5 | AC25: 2 | AD25: Placed Agency Cells: ODOT_ZEPHYR
A26: 01 Active Projects\District 06\Morrow\96213\400-Engineering\Roadway\Sheets\96213_XS002.dgn | B26: 96213_XS202 | C26: Roadway Cross Sections Sheet | D26: Cross Sections for Bridge MRW-314-2062 | E26: 96213 | F26: CROSS SECTIONS - LOCATION 2 | G26: STA. 11+25.00 TO STA. 11+75.00 | H26: ---NA--- | I26: P.25 | J26: P.54 | K26: ---NA--- | L26: ---NA--- | M26: AMH | N26: ---NA--- | O26: KLM | P26: 2023-09-12 | Q26: ---NA--- | R26: ---NA--- | S26: ---NA--- | T26: ---NA--- | U26: ---NA--- | V26: MRW-314-(8.11) (20.62) | W26: ODOT_ZEPHYR | X26: 34 | Y26: 22 | Z26: 32 | AA26: 2.5 | AB26: 1.5 | AC26: 2 | AD26: Placed Agency Cells: ODOT_ZEPHYR
A27: 01 Active Projects\District 06\Morrow\96213\400-Engineering\Roadway\Sheets\96213_XS002.dgn | B27: 96213_XS203 | C27: Roadway Cross Sections Sheet | D27: Cross Sections for Bridge MRW-314-2062 | E27: 96213 | F27: CROSS SECTIONS - LOCATION 2 | G27: STA. 12+00.00 TO STA. 12+25.00 | H27: ---NA--- | I27: P.26 | J27: P.54 | K27: ---NA--- | L27: ---NA--- | M27: AMH | N27: ---NA--- | O27: KLM | P27: 2023-09-12 | Q27: ---NA--- | R27: ---NA--- | S27: ---NA--- | T27: ---NA--- | U27: ---NA--- | V27: MRW-314-(8.11) (20.62) | W27: ODOT_ZEPHYR | X27: 34 | Y27: 22 | Z27: 32 | AA27: 2.5 | AB27: 1.5 | AC27: 2 | AD27: Placed Agency Cells: ODOT_ZEPHYR
A28: 01 Active Projects\District 06\Morrow\96213\400-Engineering\Roadway\Sheets\96213_XS002.dgn | B28: 96213_XS204 | C28: Roadway Cross Sections Sheet | D28: Cross Sections for Bridge MRW-314-2062 | E28: 96213 | F28: CROSS SECTIONS - LOCATION 2 | G28: STA. 12+50.00 TO STA. 13+00.00 | H28: ---NA--- | I28: P.27 | J28: P.54 | K28: ---NA--- | L28: ---NA--- | M28: AMH | N28: ---NA--- | O28: KLM | P28: 2023-09-12 | Q28: ---NA--- | R28: ---NA--- | S28: ---NA--- | T28: ---NA--- | U28: ---NA--- | V28: MRW-314-(8.11) (20.62) | W28: ODOT_ZEPHYR | X28: 34 | Y28: 22 | Z28: 32 | AA28: 2.5 | AB28: 1.5 | AC28: 2 | AD28: Placed Agency Cells: ODOT_ZEPHYR
A29: 01 Active Projects\District 06\Morrow\96213\400-Engineering\Roadway\Sheets\96213_XS002.dgn | B29: 96213_XS205 | C29: Roadway Cross Sections Sheet | D29: Cross Sections for Bridge MRW-314-2062 | E29: 96213 | F29: CROSS SECTIONS - LOCATION 2 | G29: STA. 13+25.00 TO STA. 13+75.00 | H29: ---NA--- | I29: P.28 | J29: P.54 | K29: ---NA--- | L29: ---NA--- | M29: AMH | N29: ---NA--- | O29: KLM | P29: 2023-09-12 | Q29: ---NA--- | R29: ---NA--- | S29: ---NA--- | T29: ---NA--- | U29: ---NA--- | V29: MRW-314-(8.11) (20.62) | W29: ODOT_ZEPHYR | X29: 34 | Y29: 22 | Z29: 32 | AA29: 2.5 | AB29: 1.5 | AC29: 2 | AD29: Placed Agency Cells: ODOT_ZEPHYR
A30: 01 Active Projects\District 06\Morrow\96213\400-Engineering\Structures\SFN_5903034\Sheets\96213_SFN_5903034_SN001.dgn | B30: 96213_SFN_5903034_SN001 | C30: Bridge General Notes Sheet | E30: 96213 | F30: STRUCTURE NOTES | G30: MRW-314-0811 | H30: OVER HOWARD RUN | I30: P.29 | J30: P.54 | K30: 1 | L30: =$K$37 -> 8 | M30: JPH | N30: AMH | O30: AMH | P30: 2023-11-02 | Q30: 5903034 | R30: ---NA--- | S30: ---NA--- | T30: ---NA--- | U30: ---NA--- | V30: MRW-314-(8.11) (20.62) | W30: ODOT_ZEPHYR | X30: 34 | Y30: 22 | Z30: 32 | AA30: 3 | AB30: 1.5 | AC30: 2 | AD30: Placed Agency Cells: ODOT_ZEPHYR
A31: 01 Active Projects\District 06\Morrow\96213\400-Engineering\Structures\SFN_5903034\Sheets\96213_SFN_5903034_SQ001.dgn | B31: 96213_SFN_5903034_SQ001 | C31: Bridge Estimated Quantities Sheet | E31: 96213 | F31: ESTIMATED QUANTITIES | G31: MRW-314-0811 | H31: OVER HOWARD RUN | I31: P.30 | J31: P.54 | K31: 2 | L31: =$K$37 -> 8 | M31: JPH | N31: AMH | O31: AMH | P31: 2023-11-02 | Q31: 5903034 | R31: ---NA--- | S31: ---NA--- | T31: ---NA--- | U31: ---NA--- | V31: MRW-314-(8.11) (20.62) | W31: ODOT_ZEPHYR | X31: 34 | Y31: 22 | Z31: 32 | AA31: 3 | AB31: 1.5 | AC31: 2 | AD31: Placed Agency Cells: ODOT_ZEPHYR
A32: 01 Active Projects\District 06\Morrow\96213\400-Engineering\Structures\SFN_5903034\Sheets\96213_SFN_5903034_SP001.dgn | B32: 96213_SFN_5903034_SP001 | C32: Bridge Site Plan Sheet | E32: 96213 | F32: SITE PLAN | G32: MRW-314-0811 | H32: OVER HOWARD RUN | I32: P.31 | J32: P.54 | K32: 3 | L32: 8 | M32: JPH | N32: AMH | O32: AMH | P32: 2023-11-02 | Q32: 5903034 | R32: ---NA--- | S32: ---NA--- | T32: ---NA--- | U32: ---NA--- | V32: MRW-314-(8.11) (20.62) | W32: ODOT_ZEPHYR | X32: 34 | Y32: 22 | Z32: 32 | AA32: 3 | AB32: 1.5 | AC32: 2 | AD32: Placed Agency Cells: ODOT_ZEPHYR
A33: 01 Active Projects\District 06\Morrow\96213\400-Engineering\Structures\SFN_5903034\Sheets\96213_SFN_5903034_SG001.dgn | B33: 96213_SG001 | C33: Bridge General Plan Sheet | E33: 96213 | F33: FOOTING LAYOUT PLAN | G33: MRW-314-0811 | H33: OVER HOWARD RUN | I33: P.32 | J33: P.54 | K33: 4 | L33: 8 | M33: JPH | N33: AMH | O33: AMH | P33: 2023-11-02 | Q33: 5903034 | R33: ---NA--- | S33: ---NA--- | T33: ---NA--- | U33: ---NA--- | V33: MRW-314-(8.11) (20.62) | W33: ODOT_ZEPHYR | X33: 34 | Y33: 22 | Z33: 32 | AA33: 3 | AB33: 1.5 | AC33: 2 | AD33: Placed Agency Cells: ODOT_ZEPHYR
A34: 01 Active Projects\District 06\Morrow\96213\400-Engineering\Structures\SFN_5903034\Sheets\96213_SFN_5903034_SG001.dgn | B34: 96213_SG002 | C34: Bridge General Plan Sheet | E34: 96213 | F34: FOOTING DETAILS | G34: MRW-314-0811 | H34: OVER HOWARD RUN | I34: P.33 | J34: P.54 | K34: 5 | L34: 8 | M34: JPH | N34: AMH | O34: AMH | P34: 2023-11-02 | Q34: 5903034 | R34: ---NA--- | S34: ---NA--- | T34: ---NA--- | U34: ---NA--- | V34: MRW-314-(8.11) (20.62) | W34: ODOT_ZEPHYR | X34: 34 | Y34: 22 | Z34: 32 | AA34: 3 | AB34: 1.5 | AC34: 2 | AD34: Placed Agency Cells: ODOT_ZEPHYR
A35: 01 Active Projects\District 06\Morrow\96213\400-Engineering\Structures\SFN_5903034\Sheets\96213_SFN_5903034_SG001.dgn | B35: 96213_SG003 | C35: Bridge General Plan Sheet | E35: 96213 | F35: WINGWALL DETAILS | G35: MRW-314-0811 | H35: OVER HOWARD RUN | I35: P.34 | J35: P.54 | K35: 6 | L35: 8 | M35: JPH | N35: AMH | O35: AMH | P35: 2023-11-02 | Q35: 5903034 | R35: ---NA--- | S35: ---NA--- | T35: ---NA--- | U35: ---NA--- | V35: MRW-314-(8.11) (20.62) | W35: ODOT_ZEPHYR | X35: 34 | Y35: 22 | Z35: 32 | AA35: 3 | AB35: 1.5 | AC35: 2 | AD35: Placed Agency Cells: ODOT_ZEPHYR
A36: 01 Active Projects\District 06\Morrow\96213\400-Engineering\Structures\SFN_5903034\Sheets\96213_SFN_5903034_SG001.dgn | B36: 96213_SG003A | C36: Bridge General Plan Sheet | E36: 96213 | F36: STEEL PLATE DETAILS | G36: MRW-314-0811 | H36: OVER HOWARD RUN | I36: P.35 | J36: P.52 | K36: 7 | L36: 8 | M36: AMH | Q36: 5903034 | R36: ---NA--- | S36: ---NA--- | T36: ---NA--- | U36: ---NA--- | V36: MRW-314-(8.11) (20.62) | W36: ODOT_ZEPHYR | X36: 34 | Y36: 22 | Z36: 32 | AA36: 3 | AB36: 1.5 | AC36: 2 | AD36: Placed Agency Cells: ODOT_ZEPHYR
A37: 01 Active Projects\District 06\Morrow\96213\400-Engineering\Structures\SFN_5903034\Sheets\96213_SFN_5903034_SG001.dgn | B37: 96213_SL001 | C37: Bridge General Plan Sheet | E37: 96213 | F37: REINFORCING STEEL LIST | G37: MRW-314-0811 | H37: OVER HOWARD RUN | I37: P.36 | J37: P.54 | K37: 8 | L37: 8 | M37: JPH | N37: AMH | O37: AMH | P37: 2023-11-02 | Q37: 5903034 | R37: ---NA--- | S37: ---NA--- | T37: ---NA--- | U37: ---NA--- | V37: MRW-314-(8.11) (20.62) | W37: ODOT_ZEPHYR | X37: 34 | Y37: 22 | Z37: 32 | AA37: 3 | AB37: 1.5 | AC37: 2 | AD37: Placed Agency Cells: ODOT_ZEPHYR
A38: 01 Active Projects\District 06\Morrow\96213\400-Engineering\Structures\SFN_5903395\Sheets\96213_SFN_5903395_SN001.dgn | B38: 96213_SFN5903395_SN001 | C38: Drainage Notes Sheet | D38: For Bridge 2062 | E38: 96213 | F38: STRUCTURE NOTES | G38: MRW-314-2062 | H38: OVER WILCOX RUN | I38: P.37 | J38: P.54 | K38: 1 | L38: =$K$48 -> 11 | M38: AMH | N38: JPH | O38: JPH | P38: 2023-11-02 | Q38: 5903395 | R38: ---NA--- | S38: ---NA--- | T38: ---NA--- | U38: ---NA--- | V38: MRW-314-(8.11) (20.62) | W38: ODOT_ZEPHYR | X38: 34 | Y38: 22 | Z38: 32 | AA38: 3 | AB38: 1.5 | AC38: 2 | AD38: Placed Agency Cells: ODOT_ZEPHYR
A39: 01 Active Projects\District 06\Morrow\96213\400-Engineering\Structures\SFN_5903395\Sheets\96213_SFN_5903395_SQ001.dgn | B39: 96213_SFN_5903395_SQ001 | C39: Bridge Estimated Quantities Sheet | E39: 96213 | F39: ESTIMATED QUANTITIES | G39: MRW-314-2062 | H39: OVER WILCOX RUN | I39: P.38 | J39: P.54 | K39: 2 | L39: =$K$48 -> 11 | M39: AMH | N39: JPH | O39: JPH | P39: 2023-11-02 | Q39: 5903395 | R39: ---NA--- | S39: ---NA--- | T39: ---NA--- | U39: ---NA--- | V39: MRW-314-(8.11) (20.62) | W39: ODOT_ZEPHYR | X39: 34 | Y39: 22 | Z39: 32 | AA39: 3 | AB39: 1.5 | AC39: 2 | AD39: Placed Agency Cells: ODOT_ZEPHYR
A40: 01 Active Projects\District 06\Morrow\96213\400-Engineering\Structures\SFN_5903395\Sheets\96213_SFN_5903395_SP001.dgn | B40: 96213_SFN_5903395_SP001 | C40: Bridge Site Plan Sheet | E40: 96213 | F40: SITE PLAN | G40: MRW-314-2062 | H40: OVER WILCOX RUN | I40: P.39 | J40: P.54 | K40: 3 | L40: 11 | M40: AMH | N40: JPH | O40: JPH | P40: 2023-11-02 | Q40: 5903395 | R40: ---NA--- | S40: 2.5 | T40: 5 | U40: 10 | V40: MRW-314-(8.11) (20.62) | W40: ODOT_ZEPHYR | X40: 34 | Y40: 22 | Z40: 32 | AA40: 3 | AB40: 1.5 | AC40: 2 | AD40: Placed Agency Cells: ODOT_ZEPHYR
A41: 01 Active Projects\District 06\Morrow\96213\400-Engineering\Structures\SFN_5903395\Sheets\96213_SFN_5903395_SM001.dgn | B41: 96213_SFN_5903395_SM001 | C41: Bridge Miscellaneous Details Sheet | E41: 96213 | F41: FOOTING LAYOUT PLAN | G41: MRW-314-2062 | H41: OVER WILCOX RUN | I41: P.40 | J41: P.54 | K41: 4 | L41: 11 | M41: AMH | N41: JPH | O41: JPH | P41: 2023-11-02 | Q41: 5903395 | R41: ---NA--- | S41: ---NA--- | T41: ---NA--- | U41: ---NA--- | V41: MRW-314-(8.11) (20.62) | W41: ODOT_ZEPHYR | X41: 34 | Y41: 22 | Z41: 32 | AA41: 3 | AB41: 1.5 | AC41: 2 | AD41: Placed Agency Cells: ODOT_ZEPHYR
A42: 01 Active Projects\District 06\Morrow\96213\400-Engineering\Structures\SFN_5903395\Sheets\96213_SFN_5903395_SM001.dgn | B42: 96213_SFN_5903395_SM002 | C42: Bridge Miscellaneous Details Sheet | E42: 96213 | F42: FOOTING DETAILS | G42: MRW-314-2062 | H42: OVER WILCOX RUN | I42: P.41 | J42: P.54 | K42: 5 | L42: 11 | M42: AMH | N42: JPH | O42: JPH | P42: 2023-11-02 | Q42: 5903395 | R42: ---NA--- | S42: ---NA--- | T42: ---NA--- | U42: ---NA--- | V42: MRW-314-(8.11) (20.62) | W42: ODOT_ZEPHYR | X42: 34 | Y42: 22 | Z42: 32 | AA42: 3 | AB42: 1.5 | AC42: 2 | AD42: Placed Agency Cells: ODOT_ZEPHYR
A43: 01 Active Projects\District 06\Morrow\96213\400-Engineering\Structures\SFN_5903395\Sheets\96213_SFN_5903395_SM001.dgn | B43: 96213_SFN_5903395_SM003 | C43: Bridge Miscellaneous Details Sheet | E43: 96213 | F43: WINGWALL ELEVATIONS | G43: MRW-314-2062 | H43: OVER WILCOX RUN | I43: P.42 | J43: P.54 | K43: 6 | L43: 11 | M43: AMH | N43: JPH | O43: JPH | P43: 2023-11-02 | Q43: 5903395 | R43: ---NA--- | S43: ---NA--- | T43: ---NA--- | U43: ---NA--- | V43: MRW-314-(8.11) (20.62) | W43: ODOT_ZEPHYR | X43: 34 | Y43: 22 | Z43: 32 | AA43: 3 | AB43: 1.5 | AC43: 2 | AD43: Placed Agency Cells: ODOT_ZEPHYR
A44: 01 Active Projects\District 06\Morrow\96213\400-Engineering\Structures\SFN_5903395\Sheets\96213_SFN_5903395_SM001.dgn | B44: 96213_SFN_5903395_SM004 | C44: Bridge Miscellaneous Details Sheet | E44: 96213 | F44: INLET WINGWALL DETAILS | G44: MRW-314-2062 | H44: OVER WILCOX RUN | I44: P.43 | J44: P.54 | K44: 7 | L44: 11 | M44: AMH | N44: JPH | O44: JPH | P44: 2023-11-02 | Q44: 5903395 | R44: ---NA--- | S44: ---NA--- | T44: ---NA--- | U44: ---NA--- | V44: MRW-314-(8.11) (20.62) | W44: ODOT_ZEPHYR | X44: 34 | Y44: 22 | Z44: 32 | AA44: 3 | AB44: 1.5 | AC44: 2 | AD44: Placed Agency Cells: ODOT_ZEPHYR
A45: 01 Active Projects\District 06\Morrow\96213\400-Engineering\Structures\SFN_5903395\Sheets\96213_SFN_5903395_SM001.dgn | B45: 96213_SFN_5903395_SM005 | C45: Bridge Miscellaneous Details Sheet | E45: 96213 | F45: OUTLET WINGWALL DETAILS | G45: MRW-314-2062 | H45: OVER WILCOX RUN | I45: P.44 | J45: P.54 | K45: 8 | L45: 11 | M45: AMH | N45: JPH | O45: JPH | P45: 2023-11-02 | Q45: 5903395 | R45: ---NA--- | S45: ---NA--- | T45: ---NA--- | U45: ---NA--- | V45: MRW-314-(8.11) (20.62) | W45: ODOT_ZEPHYR | X45: 34 | Y45: 22 | Z45: 32 | AA45: 3 | AB45: 1.5 | AC45: 2 | AD45: Placed Agency Cells: ODOT_ZEPHYR
A46: 01 Active Projects\District 06\Morrow\96213\400-Engineering\Structures\SFN_5903395\Sheets\96213_SFN_5903395_SM001.dgn | B46: 96213_SFN_5903395_SM006 | C46: Bridge Miscellaneous Details Sheet | E46: 96213 | F46: FORESLOPE WALL DETAILS | G46: MRW-314-2062 | H46: OVER WILCOX RUN | I46: P.45 | J46: P.54 | K46: 9 | L46: 11 | M46: AMH | N46: JPH | O46: JPH | P46: 2023-11-02 | Q46: 5903395 | R46: ---NA--- | S46: ---NA--- | T46: ---NA--- | U46: ---NA--- | V46: MRW-314-(8.11) (20.62) | W46: ODOT_ZEPHYR | X46: 34 | Y46: 22 | Z46: 32 | AA46: 3 | AB46: 1.5 | AC46: 2 | AD46: Placed Agency Cells: ODOT_ZEPHYR
A47: 01 Active Projects\District 06\Morrow\96213\400-Engineering\Structures\SFN_5903395\Sheets\96213_SFN_5903395_SM001.dgn | B47: 96213_SFN_5903395_SM006A | C47: Bridge Miscellaneous Details Sheet | E47: 96213 | F47: STEEL PLATE DETAILS | G47: MRW-314-2062 | H47: OVER WILCOX RUN | I47: P.46 | J47: P.52 | K47: 10 | L47: 11 | M47: AMH | Q47: 5903395 | R47: ---NA--- | S47: ---NA--- | T47: ---NA--- | U47: ---NA--- | V47: MRW-314-(8.11) (20.62) | W47: ODOT_ZEPHYR | X47: 34 | Y47: 22 | Z47: 32 | AA47: 3 | AB47: 1.5 | AC47: 2 | AD47: Placed Agency Cells: ODOT_ZEPHYR
A48: 01 Active Projects\District 06\Morrow\96213\400-Engineering\Structures\SFN_5903395\Sheets\96213_SFN_5903395_SM001.dgn | B48: 96213_SFN_5903395_SM007 | C48: Bridge Miscellaneous Details Sheet | E48: 96213 | F48: REINFORCING STEEL LIST | G48: MRW-314-2062 | H48: OVER WILCOX RUN | I48: P.47 | J48: P.54 | K48: 11 | L48: 11 | M48: AMH | N48: JPH | O48: JPH | P48: 2023-11-02 | Q48: 5903395 | R48: ---NA--- | S48: ---NA--- | T48: ---NA--- | U48: ---NA--- | V48: MRW-314-(8.11) (20.62) | W48: ODOT_ZEPHYR | X48: 34 | Y48: 22 | Z48: 32 | AA48: 3 | AB48: 1.5 | AC48: 2 | AD48: Placed Agency Cells: ODOT_ZEPHYR
A49: 01 Active Projects\District 06\Morrow\96213\400-Engineering\Geotechnical\Sheets\96213_ZC001.dgn | B49: Sheet | C49: Geotechnical Structure Foundation Exploration Cover Sheet | E49: 96213 | F49: GEOTECHNICAL PROFILE - CULVERT | G49: CULV. NO. MRW-314-0808 OVER HOWARD RUN & CULV. NO. MRW-314-2057 OVER WILCOX RUN | H49: ---NA--- | I49: P.48 | J49: P.54 | K49: 1 | L49: 7 | M49: ARR | N49: ---NA--- | O49: SAT | P49: 09/14/22 | Q49: ---NA--- | R49: ---NA--- | S49: ---NA--- | T49: ---NA--- | U49: ---NA--- | V49: MRW-314-(8.11) (20.62) | W49: ODOT_ZEPHYR | X49: ---NA--- | Y49: ---NA--- | Z49: ---NA--- | AA49: ---NA--- | AB49: ---NA--- | AC49: ---NA--- | AD49: Placed Agency Cells: ODOT_ZEPHYR
A50: 01 Active Projects\District 06\Morrow\96213\400-Engineering\Geotechnical\Sheets\96213_ZP101.dgn | B50: CLX_Howard_Run - Plan 1 [Sheet] | C50: Geotechnical Structure Foundation Exploration Plan and Profile Sheet | D50: MRW-314-8.08 | E50: 96213 | F50: GEOTECHNICAL PROFILE - CULVERT | G50: CULVERT NO. MRW-314-0808 OVER HOWARD RUN | H50: ---NA--- | I50: P.49 | J50: P.54 | K50: 2 | L50: 7 | M50: ARR | N50: ---NA--- | O50: SAT | P50: 09/14/22 | Q50: ---NA--- | R50: ---NA--- | S50: 5 | T50: 10 | U50: 20 | V50: MRW-314-(8.11) (20.62) | W50: ODOT_ZEPHYR | X50: ---NA--- | Y50: ---NA--- | Z50: ---NA--- | AA50: ---NA--- | AB50: ---NA--- | AC50: ---NA--- | AD50: Placed Agency Cells: ODOT_ZEPHYR
A51: 01 Active Projects\District 06\Morrow\96213\400-Engineering\Geotechnical\Sheets\96213_ZP201.dgn | B51: CLP_1 - Plan 1 [Sheet] | C51: Geotechnical Structure Foundation Exploration Plan and Profile Sheet | E51: 96213 | F51: GEOTECHNICAL PROFILE - CULVERT | G51: CULVERT NO. MRW-314-2057 OVER WILCOX RUN | H51: ---NA--- | I51: P.50 | J51: P.54 | K51: 3 | L51: 7 | M51: ARR | N51: ---NA--- | O51: SAT | P51: 09/14/22 | Q51: ---NA--- | R51: ---NA--- | S51: 5 | T51: 10 | U51: 20 | V51: MRW-314-(8.11) (20.62) | W51: ODOT_ZEPHYR | X51: ---NA--- | Y51: ---NA--- | Z51: ---NA--- | AA51: ---NA--- | AB51: ---NA--- | AC51: ---NA--- | AD51: Placed Agency Cells: ODOT_ZEPHYR
A52: 01 Active Projects\District 06\Morrow\96213\400-Engineering\Geotechnical\Sheets\96213_ZL101.dgn | B52: Sheet | C52: Geotechnical Structure Foundation Exploration Boring Logs Sheet | E52: 96213 | F52: GEOTECHNICAL PROFILE - CULVERT | G52: CULVERT NO. MRW-314-0808 OVER HOWARD RUN | H52: HISTORIC BORING LOG B-001-0-72 | I52: P.51 | J52: P.54 | K52: 4 | L52: 7 | M52: ARR | N52: ---NA--- | O52: SAT | P52: 09/14/22 | Q52: ---NA--- | R52: ---NA--- | S52: ---NA--- | T52: ---NA--- | U52: ---NA--- | V52: MRW-314-(8.11) (20.62) | W52: ODOT_ZEPHYR | X52: ---NA--- | Y52: ---NA--- | Z52: ---NA--- | AA52: ---NA--- | AB52: ---NA--- | AC52: ---NA--- | AD52: Placed Agency Cells: ODOT_ZEPHYR
A53: 01 Active Projects\District 06\Morrow\96213\400-Engineering\Geotechnical\Sheets\96213_ZL102.dgn | B53: Sheet | C53: Geotechnical Structure Foundation Exploration Boring Logs Sheet | E53: 96213 | F53: GEOTECHNICAL PROFILE - CULVERT | G53: CULVERT NO. MRW-314-0808 OVER HOWARD RUN | H53: HISTORIC BORING LOG B-003-0-72 | I53: P.52 | J53: P.54 | K53: 5 | L53: 7 | M53: ARR | N53: ---NA--- | O53: SAT | P53: 09/14/22 | Q53: ---NA--- | R53: ---NA--- | S53: ---NA--- | T53: ---NA--- | U53: ---NA--- | V53: MRW-314-(8.11) (20.62) | W53: ODOT_ZEPHYR | X53: ---NA--- | Y53: ---NA--- | Z53: ---NA--- | AA53: ---NA--- | AB53: ---NA--- | AC53: ---NA--- | AD53: Placed Agency Cells: ODOT_ZEPHYR
A54: 01 Active Projects\District 06\Morrow\96213\400-Engineering\Geotechnical\Sheets\96213_ZL201.dgn | B54: Sheet | C54: Geotechnical Structure Foundation Exploration Boring Logs Sheet | E54: 96213 | F54: GEOTECHNICAL PROFILE - CULVERT | G54: CULVERT NO. MRW-314-2057 OVER WILCOX RUN | H54: BORING LOG B-001-0-19 | I54: P.53 | J54: P.54 | K54: 6 | L54: 7 | M54: ARR | N54: ---NA--- | O54: SAT | P54: 09/14/22 | Q54: ---NA--- | R54: ---NA--- | S54: ---NA--- | T54: ---NA--- | U54: ---NA--- | V54: MRW-314-(8.11) (20.62) | W54: ODOT_ZEPHYR | X54: ---NA--- | Y54: ---NA--- | Z54: ---NA--- | AA54: ---NA--- | AB54: ---NA--- | AC54: ---NA--- | AD54: Placed Agency Cells: ODOT_ZEPHYR
A55: 01 Active Projects\District 06\Morrow\96213\400-Engineering\Geotechnical\Sheets\96213_ZL202.dgn | B55: Sheet | C55: Geotechnical Structure Foundation Exploration Boring Logs Sheet | E55: 96213 | F55: GEOTECHNICAL PROFILE - CULVERT | G55: CULVERT NO. MRW-314-2057 OVER WILCOX RUN | H55: BORING LOG B-002-0-19 | I55: P.54 | J55: =$I$55 -> P.54 | K55: 7 | L55: 7 | M55: ARR | N55: ---NA--- | O55: SAT | P55: 09/14/22 | Q55: ---NA--- | R55: ---NA--- | S55: ---NA--- | T55: ---NA--- | U55: ---NA--- | V55: MRW-314-(8.11) (20.62) | W55: ODOT_ZEPHYR | X55: ---NA--- | Y55: ---NA--- | Z55: ---NA--- | AA55: ---NA--- | AB55: ---NA--- | AC55: ---NA--- | AD55: Placed Agency Cells: ODOT_ZEPHYR
H56: 1 | I56: P.53
H57: 2 | I57: P.54
H58: 3 | I58: P.55
H59: 4 | I59: P.56
H60: 5 | I60: P.57
H61: 6 | I61: P.58
H62: 7 | I62: P.59
H63: 8 | I63: P.60

Sheet EDA
C6: EDA | D6: =Earthwork!G47/4840 -> 0.3495867769

Sheet GT
C2: MRW-314-8.11 | D2: MRW-314-20.62
A3: CURRENT ADT (2024)____________________________ | C3: 2600 | D3: 2900
A4: DESIGN YEAR ADT (2044)_________________________ | C4: 3200 | D4: 3000
A5: DESIGN HOURLY VOLUME (2044)__________________ | C5: 400 | D5: 400
A6: DIRECTIONAL DISTRIBUTION_____________________ | C6: 0.51 | D6: 0.56
A7: TRUCKS (24 HOUR B&C)_________________________ | C7: 0.2 | D7: 0.11
A8: DESIGN SPEED_________________________________ | C8: 55 MPH
A9: LEGAL SPEED__________________________________ | C9: 55 MPH
A10: DESIGN FUNCTIONAL CLASSIFICATION: | C10: 05 MAJOR COLLECTOR (RURAL)
A11: NHS PROJECT________________________________ | C11: NO
G15: INDEX OF SHEETS | N15: STANDARD CONSTRUCTION DRAWINGS | V15: SUPPLEMENTAL | X15: SPECIAL
V16: SPECIFICATIONS | X16: PROVISIONS
G17: TITLE | J17: ='sht mgr'!I2 -> P.1 | N17: BP-3.1 | O17: 2022-01-21 | P17: TC-42.20 | Q17: 2013-10-18 | R17: MT-97.10 | S17: 2019-04-19 | T17: DM-1.1 | U17: 2020-07-17 | V17: 800 | W17: 2023-10-20 | X17: WATERWAY PERMIT CONDITIONS 9/12/2023
G18: TYPICAL SECTIONS | J18: ='sht mgr'!I3 -> P.2 | P18: TC-52.10 | Q18: 2013-10-18 | R18: MT-101.60 | S18: 2023-04-21 | T18: DM-4.4 | U18: 2016-01-15 | V18: 832 | W18: 2023-07-21
G19: GENERAL NOTES | J19: ='sht mgr'!I4 -> P.3 | N19: MGS-1.1 | O19: 2021-07-16 | P19: TC-52.20 | Q19: 2021-01-15 | R19: MT-101.90 | S19: 2020-07-17 | V19: 851 | W19: 2022-01-21
G20: MAINTENANCE OF TRAFFIC NOTES | H20: ='sht mgr'!I5 -> P.4 | I20: - | J20: ='sht mgr'!I7 -> P.6 | N20: MGS-2.1 | O20: 2018-01-19 | P20: TC-61.30 | Q20: 2019-07-19 | R20: MT-105.10 | S20: 2020-01-17 | V20: 878 | W20: 2022-01-21
G21: MAINTENANCE OF TRAFFIC PLAN | H21: ='sht mgr'!I8 -> P.7 | I21: - | J21: ='sht mgr'!I10 -> P.9 | N21: MGS-2.3 | O21: 2023-01-20 | P21: TC-65.10 | Q21: 2014-01-17
G22: GENERAL SUMMARY | H22: ='sht mgr'!I11 -> P.10 | I22: - | J22: ='sht mgr'!I12 -> P.11 | N22: MGS-4.2 | O22: 2013-07-19 | P22: TC-65.11 | Q22: 2022-07-15
G23: PAVEMENT CALCULATIONS | J23: ='sht mgr'!I13 -> P.12 | N23: MGS-5.3 | O23: 2016-07-15
G24: PLAN SUBSUMMARY | J24: ='sht mgr'!I14 -> P.13
G25: EARTHWORK SUBSUMMARY | J25: ='sht mgr'!I15 -> P.14
G26: ROADWAY PLAN - LOCATION 1 | J26: ='sht mgr'!I16 -> P.15
G27: ROADWAY PLAN - LOCATION 2 | J27: ='sht mgr'!I17 -> P.16
G28: CROSS SECTIONS - LOCATION 1 | H28: ='sht mgr'!I18 -> P.17 | I28: - | J28: ='sht mgr'!I24 -> P.23
G29: CROSS SECTIONS - LOCATION 2 | H29: ='sht mgr'!I25 -> P.24 | I29: - | J29: ='sht mgr'!I29 -> P.28
G30: STRUCTURES (20 FOOT SPAN AND UNDER)
G31: MRW-314-0811 | H31: ='sht mgr'!I30 -> P.29 | I31: - | J31: ='sht mgr'!I37 -> P.36
G32: MRW-314-2062 | H32: ='sht mgr'!I38 -> P.37 | I32: - | J32: ='sht mgr'!I48 -> P.47
G33: GEOTECHNICAL DATA | H33: ='sht mgr'!I49 -> P.48 | I33: - | J33: ='sht mgr'!I55 -> P.54

Sheet GY
A2: TYPICAL SECTION #1 - FULL-DEPTH PAVEMENT REPLACEMENT
A3: LOCATION 1
A4: STA. | B4: =D10 -> 270 | C4: TO STA. | D4: =B11 -> 341 | E4: = | F4: =ROUND(D4-B4,0) -> 71 | G4: FT
A5: LOCATION 2
A6: STA. | B6: =D13 -> 1190 | C6: TO STA. | D6: =B14 -> 1250 | E6: = | F6: =ROUND(D6-B6,0) -> 60 | G6: FT
A8: TYPICAL SECTION #2 - 1.50" RESURFACING
A9: LOCATION 1
A10: STA. | B10: 245 | C10: TO STA. | D10: 270 | E10: = | F10: =ROUND(D10-B10,0) -> 25 | G10: FT
A11: STA. | B11: 341 | C11: TO STA. | D11: 366 | E11: = | F11: 25 | G11: FT
A12: LOCATION 2
A13: STA. | B13: 1165 | C13: TO STA. | D13: 1190 | E13: = | F13: =ROUND(D13-B13,0) -> 25 | G13: FT
A14: STA. | B14: =1250 -> 1250 | C14: TO STA. | D14: =1275 -> 1275 | E14: = | F14: 25 | G14: FT

Sheet MN
D7: NOTIFICATION TIME FRAME TABLE
D8: ITEM | E8: DURATION OF CLOSURE | F8: NOTIFICATION DUE TO DISTRICT 6 COMMUNICATIONS OFFICE | G8: SIGN DISPLAYED TO PUBLIC
D10: RAMP & ROAD CLOSURES | E10: >= 2 WEEKS | F10: 21 CALENDAR DAYS PRIOR TO CLOSURE | G10: 14 CALENDAR DAYS PRIOR TO CLOSURE
E11: > 12 HOURS & < 2 WEEKS | F11: 14 CALENDAR DAYS PRIOR TO CLOSURE | G11: 7 CALENDAR DAYS PRIOR TO CLOSURE
E12: <= 12 HOURS | F12: 4 BUSINESS DAYS PRIOR TO CLOSURE | G12: 2 CALENDAR DAYS PRIOR TO CLOSURE
D14: LANE CLOSURES & RESTRICTIONS | E14: >= 2 WEEKS | F14: 14 CALENDAR DAYS PRIOR TO CLOSURE
E15: < 2 WEEKS | F15: 5 BUSINESS DAYS PRIOR TO CLOSURE
D17: START OF CONSTRUCTION & TRAFFIC PATTERN CHANGES | E17: N/A | F17: 14 CALENDAR DAYS PRIOR TO IMPLEMENTATION
J19: DESCRIPTION OF CRITICAL WORK | K19: DAYS TO COMPLETE | L19: DISINCENTIVE $ PER DAY | M19: WORK WINDOW
M20: START | N20: END
J21: COMPLETE STRUCTURE REPLACEMENT AT MRW-314-0811 (LOCATION 1). INCLUDES FULL-DEPTH PAVEMENT AND PERMANENT PAVEMENT MARKINGS. | K21: 21 DAYS | L21: 4000 | M21: CONTRACT EXECUTION DATE | N21: CONTRACT COMPLETION DATE
J22: COMPLETE STRUCTURE REPLACEMENT AT MRW-314-2062 (LOCATION 2). INCLUDES FULL-DEPTH PAVEMENT AND PERMANENT PAVEMENT MARKINGS. | K22: 21 DAYS | L22: 4000 | M22: CONTRACT EXECUTION DATE | N22: CONTRACT COMPLETION DATE

Sheet MD
I9: R11-3B-60
J10: LOCATION 1 | R10: LOCATION 2
J11: SR-314 & SR-95 | K11: SR-314 & SHURR RD | L11: SR-314 & PENLAN RD | M11: SR-314 & LEVERING RD | N11: SR-314 & PROSPECT MT VERNON RD | O11: SR-314 & SR-229 | R11: SR-314 & US-42 | S11: SR-314 & W POINT BELLVILLE RD | T11: SR-314 & ST JAMES BELLVILLE RD | U11: SR-314 & STEAM CORNERS-LEXINGTON RD | V11: SR-314 & SR-97
I12: TEXT FOR R-11-3B-60 | J12: 1.8 | K12: 1.2 | L12: 0.5 | M12: 1.6 | N12: 3.4 | O12: 4 | Q12: TEXT FOR R-11-3B-60 | R12: 0.6 | S12: 0.4 | T12: 1.4 | U12: 3.4 | V12: 5

Sheet TYP LEGEND
A1: LEGEND
A2: A | B2: APPROX. 13" EXISTING ASPHALT - SEE GEOTECHNICAL DATA
A3: 1 | B3: ITEM 202 - PAVEMENT REMOVED
A4: 2 | B4: ITEM 203 - EXCAVATION
A5: 3 | B5: ITEM 204 - SUBGRADE COMPACTION
A6: 4 | B6: ITEM 254 - PAVEMENT PLANING, ASPHALT CONCRETE, 1.50"
A7: 5 | B7: ITEM 301 - 10.00" ASPHALT CONCRETE BASE, PG64-22, (449) (TWO 5.00" LIFTS)
A8: 6 | B8: ITEM 304 - 6.00" AGGREGATE BASE*
A9: 6A | B9: ITEM 304 - 13.00" AGGREGATE BASE
A10: 7 | B10: ITEM 407 - NON-TRACKING TACK COAT (RATE PER CMS TABLE 407.06-1)
A11: 8 | B11: ITEM 441 - 1.50" ASPHALT CONCRETE SURFACE COURSE, TYPE 1, (449), PG64-22
A12: 9 | B12: ITEM 441 - 3.00" ASPHALT CONCRETE SURFACE COURSE, TYPE 1, (449), PG64-22 (TWO 1.50" LIFTS)
A13: 10 | B13: ITEM 605 - AGGREGATE DRAINS
A14: 11 | B14: ITEM 659 - SEEDING AND MULCHING

Sheet GG001
M1: PARTICIPATION
S3: SEE
A4: SHEET NUMBER | M4: 01/STR/10 | N4: ITEM | O4: ITEM | P4: GRAND | Q4: UNIT | R4: DESCRIPTION | S4: SHEET
S5: NO.
O6: EXT | P6: TOTAL
A8: ='sht mgr'!I4 -> P.3 | B8: ='sht mgr'!I5&"-"&'sht mgr'!I7 -> P.4-P.6 | C8: ='sht mgr'!I13 -> P.12 | D8: ='sht mgr'!I14 -> P.13 | E8: ='sht mgr'!I15 -> P.14 | F8: ='sht mgr'!I31 -> P.30 | G8: ='sht mgr'!I39 -> P.38 | W8: CHECKS
R9: ROADWAY | W9: QTY | X9: UNIT | Y9: DESC
F10: LS | G10: LS | M10: LS | N10: =LEFT('0811 Bridge'!A3,3) -> 201 | O10: =RIGHT('0811 Bridge'!A3,5) -> 11000 | P10: LS | R10: ='0811 Bridge'!D3 -> CLEARING AND GRUBBING | U10: =N10&"E"&O10 -> 201E11000 | W10: =IF(P10=[4]SimpleForm!AC14,1,"BAD") -> 1 | X10: =IF(Q10=[4]SimpleForm!AD14,1,"BAD") -> 1 | Y10: =IF(R10=[4]SimpleForm!AE14,1,"BAD") -> 1
C11: =Pavement!J24 -> 349 | M11: =SUM(A11:L11) -> 349 | N11: =LEFT(Pavement!J2,3) -> 202 | O11: =RIGHT(Pavement!J2,5) -> 23000 | P11: =M11 -> 349 | Q11: =Pavement!J10 -> SY | R11: =Pavement!J3 -> PAVEMENT REMOVED | U11: =N11&"E"&O11 -> 202E23000 | W11: =IF(P11=[4]SimpleForm!AC15,1,"BAD") -> 1 | X11: =IF(Q11=[4]SimpleForm!AD15,1,"BAD") -> 1 | Y11: =IF(R11=[4]SimpleForm!AE15,1,"BAD") -> 1
D12: =Plan!I28 -> 5 | M12: 5 | N12: =LEFT(Plan!I2,3) -> 202 | O12: =RIGHT(Plan!I2,5) -> 35200 | P12: 5 | Q12: =Plan!I14 -> FT | R12: =Plan!I3 -> PIPE REMOVED, OVER 24" | U12: =N12&"E"&O12 -> 202E35200 | W12: =IF(P12=[4]SimpleForm!AC16,1,"BAD") -> 1 | X12: =IF(Q12=[4]SimpleForm!AD16,1,"BAD") -> 1 | Y12: =IF(R12=[4]SimpleForm!AE16,1,"BAD") -> 1
D13: =Plan!J28 -> 24 | M13: 24 | N13: =LEFT(Plan!J2,3) -> 202 | O13: =RIGHT(Plan!J2,5) -> 75000 | P13: 24 | Q13: =Plan!J14 -> FT | R13: =Plan!J3 -> FENCE REMOVED | U13: 202E75000 | W13: =IF(P13=[4]SimpleForm!AC17,1,"BAD") -> 1 | X13: =IF(Q13=[4]SimpleForm!AD17,1,"BAD") -> 1 | Y13: =IF(R13=[4]SimpleForm!AE17,1,"BAD") -> 1
D14: =Plan!K28 -> 300 | M14: 300 | N14: =LEFT(Plan!K2,3) -> 202 | O14: =RIGHT(Plan!K2,5) -> 38001 | P14: 300 | Q14: =Plan!K14 -> FT | R14: =Plan!K3 -> GUARDRAIL REMOVED, AS PER PLAN | S14: =A8 -> P.3 | U14: 202E38001 | W14: =IF(P14=[4]SimpleForm!AC18,1,"BAD") -> 1 | X14: =IF(Q14=[4]SimpleForm!AD18,1,"BAD") -> 1 | Y14: =IF(R14=[4]SimpleForm!AE18,1,"BAD") -> 1
W15: =IF(P15=[4]SimpleForm!AC19,1,"BAD") -> 1 | X15: =IF(Q15=[4]SimpleForm!AD19,1,"BAD") -> 1 | Y15: =IF(R15=[4]SimpleForm!AE19,1,"BAD") -> 1
D16: =Plan!L28 -> 6 | M16: 6 | N16: =LEFT(Plan!L2,3) -> 202 | O16: =RIGHT(Plan!L2,5) -> 42001 | P16: 6 | Q16: =Plan!L14 -> EACH | R16: =Plan!L3 -> ANCHOR ASSEMBLY REMOVED, TYPE A, AS PER PLAN | S16: =A8 -> P.3 | U16: 202E42001 | W16: =IF(P16=[4]SimpleForm!AC20,1,"BAD") -> 1 | X16: =IF(Q16=[4]SimpleForm!AD20,1,"BAD") -> 1 | Y16: =IF(R16=[4]SimpleForm!AE20,1,"BAD") -> 1
C17: =Pavement!K24 -> 87 | E17: =Earthwork!E47 -> 133 | M17: 220 | N17: =LEFT(Pavement!K2,3) -> 203 | O17: =RIGHT(Pavement!K2,5) -> 10000 | P17: 220 | Q17: =Pavement!K10 -> CY | R17: =Pavement!K3 -> EXCAVATION | U17: 203E10000 | W17: =IF(P17=[4]SimpleForm!AC21,1,"BAD") -> 1 | X17: =IF(Q17=[4]SimpleForm!AD21,1,"BAD") -> 1 | Y17: =IF(R17=[4]SimpleForm!AE21,1,"BAD") -> 1
E18: =Earthwork!F47 -> 174 | M18: 174 | N18: 203 | O18: 20000 | P18: 174 | Q18: CY | R18: =Earthwork!F2 -> EMBANKMENT | U18: 203E20000 | W18: =IF(P18=[4]SimpleForm!AC22,1,"BAD") -> 1 | X18: =IF(Q18=[4]SimpleForm!AD22,1,"BAD") -> 1 | Y18: =IF(R18=[4]SimpleForm!AE22,1,"BAD") -> 1
C19: =Pavement!L24 -> 389 | M19: 389 | N19: =LEFT(Pavement!L2,3) -> 204 | O19: =RIGHT(Pavement!L2,5) -> 10000 | P19: 389 | Q19: =Pavement!L10 -> SY | R19: =Pavement!L3 -> SUBGRADE COMPACTION | U19: 204E10000 | W19: =IF(P19=[4]SimpleForm!AC23,1,"BAD") -> 1 | X19: =IF(Q19=[4]SimpleForm!AD23,1,"BAD") -> 1 | Y19: =IF(R19=[4]SimpleForm!AE23,1,"BAD") -> 1
D20: =Plan!M28 -> 737.5 | M20: 737.5 | N20: =LEFT(Plan!M2,3) -> 606 | O20: =RIGHT(Plan!M2,5) -> 15050 | P20: 737.5 | Q20: =Plan!M14 -> FT | R20: =Plan!M3 -> GUARDRAIL, TYPE MGS | U20: 606E15050 | W20: =IF(P20=[4]SimpleForm!AC24,1,"BAD") -> 1 | X20: =IF(Q20=[4]SimpleForm!AD24,1,"BAD") -> 1 | Y20: =IF(R20=[4]SimpleForm!AE24,1,"BAD") -> 1
W21: =IF(P21=[4]SimpleForm!AC25,1,"BAD") -> 1 | X21: =IF(Q21=[4]SimpleForm!AD25,1,"BAD") -> 1 | Y21: =IF(R21=[4]SimpleForm!AE25,1,"BAD") -> 1
D22: =Plan!N28 -> 25 | M22: 25 | N22: =LEFT(Plan!N2,3) -> 606 | O22: =RIGHT(Plan!N2,5) -> 15150 | P22: 25 | Q22: =Plan!N14 -> FT | R22: =Plan!N3 -> GUARDRAIL, TYPE MGS HALF POST SPACING | U22: 606E15150 | W22: =IF(P22=[4]SimpleForm!AC26,1,"BAD") -> 1 | X22: =IF(Q22=[4]SimpleForm!AD26,1,"BAD") -> 1 | Y22: =IF(R22=[4]SimpleForm!AE26,1,"BAD") -> 1
D23: =Plan!O28 -> 43.75 | M23: 43.75 | N23: =LEFT(Plan!O2,3) -> 606 | O23: =RIGHT(Plan!O2,5) -> 15300 | P23: 43.75 | Q23: =Plan!O14 -> FT | R23: =Plan!O3 -> GUARDRAIL, TYPE MGS QUARTER POST SPACING WITH LONG POSTS | U23: 606E15300 | W23: =IF(P23=[4]SimpleForm!AC27,1,"BAD") -> 1 | X23: =IF(Q23=[4]SimpleForm!AD27,1,"BAD") -> 1 | Y23: =IF(R23=[4]SimpleForm!AE27,1,"BAD") -> 1
D24: =Plan!P28 -> 6 | M24: 6 | N24: =LEFT(Plan!P2,3) -> 606 | O24: =RIGHT(Plan!P2,5) -> 26151 | P24: 6 | Q24: =Plan!P14 -> EACH | R24: =Plan!P3 -> ANCHOR ASSEMBLY, MGS TYPE E, AS PER PLAN (MASH2016) | S24: ='sht mgr'!I4 -> P.3 | U24: 606E26151 | W24: =IF(P24=[4]SimpleForm!AC28,1,"BAD") -> 1 | X24: =IF(Q24=[4]SimpleForm!AD28,1,"BAD") -> 1 | Y24: =IF(R24=[4]SimpleForm!AE28,1,"BAD") -> 1
D25: =Plan!Q28 -> 2 | M25: 2 | N25: =LEFT(Plan!Q2,3) -> 606 | O25: =RIGHT(Plan!Q2,5) -> 26550 | P25: 2 | Q25: =Plan!Q14 -> EACH | R25: =Plan!Q3 -> ANCHOR ASSEMBLY, MGS TYPE T | U25: 606E26550 | W25: =IF(P25=[4]SimpleForm!AC29,1,"BAD") -> 1 | X25: =IF(Q25=[4]SimpleForm!AD29,1,"BAD") -> 1 | Y25: =IF(R25=[4]SimpleForm!AE29,1,"BAD") -> 1
A26: 25 | M26: =SUM(A26:L26) -> 25 | N26: 606 | O26: 98000 | P26: =M26 -> 25 | Q26: FT | R26: GUARDRAIL, MISC.: ALTERNATIVE GUARDRAIL PLACEMENT | S26: =A8 -> P.3 | U26: 606E98000 | W26: =IF(P26=[4]SimpleForm!AC30,1,"BAD") -> 1 | X26: =IF(Q26=[4]SimpleForm!AD30,1,"BAD") -> 1 | Y26: =IF(R26=[4]SimpleForm!AE30,1,"BAD") -> 1
W27: =IF(P27=[4]SimpleForm!AC31,1,"BAD") -> 1 | X27: =IF(Q27=[4]SimpleForm!AD31,1,"BAD") -> 1 | Y27: =IF(R27=[4]SimpleForm!AE31,1,"BAD") -> 1
M28: LS | N28: 878 | O28: 25000 | P28: LS | R28: INSPECTION AND COMPACTION TESTING OF UNBOUND MATERIALS | U28: 878E25000 | W28: =IF(P28=[4]SimpleForm!AC32,1,"BAD") -> 1 | X28: =IF(Q28=[4]SimpleForm!AD32,1,"BAD") -> 1 | Y28: =IF(R28=[4]SimpleForm!AE32,1,"BAD") -> 1
W29: =IF(P29=[4]SimpleForm!AC33,1,"BAD") -> 1 | X29: =IF(Q29=[4]SimpleForm!AD33,1,"BAD") -> 1 | Y29: =IF(R29=[4]SimpleForm!AE33,1,"BAD") -> 1
R30: EROSION CONTROL | V30: =R30 -> EROSION CONTROL | W30: =IF(P30=[4]SimpleForm!AC34,1,"BAD") -> 1 | X30: =IF(Q30=[4]SimpleForm!AD34,1,"BAD") -> 1 | Y30: =IF(R30=[4]SimpleForm!AE34,1,"BAD") -> 1
F31: ='0811 Bridge'!B17 -> 23 | G31: ='2062 Bridge'!B18 -> 11 | M31: =SUM(A31:L31) -> 34 | N31: =LEFT('0811 Bridge'!A17,3) -> 601 | O31: =RIGHT('0811 Bridge'!A17,5) -> 11000 | P31: =M31 -> 34 | Q31: ='0811 Bridge'!C17 -> SY | R31: ='0811 Bridge'!D17 -> RIPRAP, TYPE D | U31: 601E11000 | W31: =IF(P31=[4]SimpleForm!AC35,1,"BAD") -> 1 | X31: =IF(Q31=[4]SimpleForm!AD35,1,"BAD") -> 1 | Y31: =IF(R31=[4]SimpleForm!AE35,1,"BAD") -> 1
F32: ='0811 Bridge'!B18 -> 100 | G32: ='2062 Bridge'!B19 -> 90 | M32: 190 | N32: =LEFT('0811 Bridge'!A18,3) -> 601 | O32: =RIGHT('0811 Bridge'!A18,5) -> 32100 | P32: 190 | Q32: ='0811 Bridge'!C18 -> CY | R32: ='0811 Bridge'!D18 -> ROCK CHANNEL PROTECTION, TYPE B WITH FILTER | U32: 601E32100 | W32: =IF(P32=[4]SimpleForm!AC36,1,"BAD") -> 1 | X32: =IF(Q32=[4]SimpleForm!AD36,1,"BAD") -> 1 | Y32: =IF(R32=[4]SimpleForm!AE36,1,"BAD") -> 1
D33: =Plan!S28 -> 4 | M33: =SUM(A33:L33) -> 4 | N33: =LEFT(Plan!S2,3) -> 601 | O33: =RIGHT(Plan!S2,5) -> 32200 | P33: 4 | Q33: =Plan!S14 -> CY | R33: =Plan!S3 -> ROCK CHANNEL PROTECTION, TYPE C WITH FILTER | U33: 601E32200 | W33: =IF(P33=[4]SimpleForm!AC37,1,"BAD") -> 1 | X33: =IF(Q33=[4]SimpleForm!AD37,1,"BAD") -> 1 | Y33: =IF(R33=[4]SimpleForm!AE37,1,"BAD") -> 1
E34: =Earthwork!L15 -> 189 | M34: =SUM(A34:L34) -> 189 | N34: 659 | O34: 00300 | P34: 189 | Q34: CY | R34: TOPSOIL | U34: 659E00300 | W34: =IF(P34=[4]SimpleForm!AC38,1,"BAD") -> 1 | X34: =IF(Q34=[4]SimpleForm!AD38,1,"BAD") -> 1 | Y34: =IF(R34=[4]SimpleForm!AE38,1,"BAD") -> 1
E35: =Earthwork!G47 -> 1692 | M35: 1692 | N35: 659 | O35: 00530 | P35: 1692 | Q35: SY | R35: SEEDING AND MULCHING, CLASS 3B | U35: 659E00530 | W35: =IF(P35=[4]SimpleForm!AC39,1,"BAD") -> 1 | X35: =IF(Q35=[4]SimpleForm!AD39,1,"BAD") -> 1 | Y35: =IF(R35=[4]SimpleForm!AE39,1,"BAD") -> 1
W36: =IF(P36=[4]SimpleForm!AC40,1,"BAD") -> 1 | X36: =IF(Q36=[4]SimpleForm!AD40,1,"BAD") -> 1 | Y36: =IF(R36=[4]SimpleForm!AE40,1,"BAD") -> 1
E37: =Earthwork!S15 -> 85 | M37: 85 | N37: 659 | O37: 14000 | P37: 85 | Q37: SY | R37: REPAIR SEEDING AND MULCHING | U37: 659E14000 | W37: =IF(P37=[4]SimpleForm!AC41,1,"BAD") -> 1 | X37: =IF(Q37=[4]SimpleForm!AD41,1,"BAD") -> 1 | Y37: =IF(R37=[4]SimpleForm!AE41,1,"BAD") -> 1
E38: =Earthwork!S28 -> 85 | M38: 85 | N38: 659 | O38: 15000 | P38: 85 | Q38: SY | R38: INTER-SEEDING | U38: 659E15000 | W38: =IF(P38=[4]SimpleForm!AC42,1,"BAD") -> 1 | X38: =IF(Q38=[4]SimpleForm!AD42,1,"BAD") -> 1 | Y38: =IF(R38=[4]SimpleForm!AE42,1,"BAD") -> 1
E39: =Earthwork!M31 -> 0.23 | M39: 0.23 | N39: 659 | O39: 20000 | P39: 0.23 | Q39: TON | R39: COMMERCIAL FERTILIZER | U39: 659E20000 | W39: =IF(P39=[4]SimpleForm!AC43,1,"BAD") -> 1 | X39: =IF(Q39=[4]SimpleForm!AD43,1,"BAD") -> 1 | Y39: =IF(R39=[4]SimpleForm!AE43,1,"BAD") -> 1
E40: =Earthwork!M45 -> 0.35 | M40: 0.35 | N40: 659 | O40: 31000 | P40: 0.35 | Q40: ACRE | R40: LIME | U40: 659E31000 | W40: =IF(P40=[4]SimpleForm!AC44,1,"BAD") -> 1 | X40: =IF(Q40=[4]SimpleForm!AD44,1,"BAD") -> 1 | Y40: =IF(R40=[4]SimpleForm!AE44,1,"BAD") -> 1
E41: =Earthwork!S45 -> 9.12 | M41: 9.12 | N41: 659 | O41: 35000 | P41: 9.12 | Q41: MGAL | R41: WATER | U41: 659E35000 | W41: =IF(P41=[4]SimpleForm!AC45,1,"BAD") -> 1 | X41: =IF(Q41=[4]SimpleForm!AD45,1,"BAD") -> 1 | Y41: =IF(R41=[4]SimpleForm!AE45,1,"BAD") -> 1
W42: =IF(P42=[4]SimpleForm!AC46,1,"BAD") -> 1 | X42: =IF(Q42=[4]SimpleForm!AD46,1,"BAD") -> 1 | Y42: =IF(R42=[4]SimpleForm!AE46,1,"BAD") -> 1
M43: 2500 | N43: 832 | O43: 30000 | P43: =M43 -> 2500 | Q43: EACH | R43: EROSION CONTROL | U43: 832E30000 | W43: =IF(P43=[4]SimpleForm!AC47,1,"BAD") -> 1 | X43: =IF(Q43=[4]SimpleForm!AD47,1,"BAD") -> 1 | Y43: =IF(R43=[4]SimpleForm!AE47,1,"BAD") -> 1
W44: =IF(P44=[4]SimpleForm!AC48,1,"BAD") -> 1 | X44: =IF(Q44=[4]SimpleForm!AD48,1,"BAD") -> 1 | Y44: =IF(R44=[4]SimpleForm!AE48,1,"BAD") -> 1
R45: DRAINAGE | V45: =R45 -> DRAINAGE | W45: =IF(P45=[4]SimpleForm!AC49,1,"BAD") -> 1 | X45: =IF(Q45=[4]SimpleForm!AD49,1,"BAD") -> 1 | Y45: =IF(R45=[4]SimpleForm!AE49,1,"BAD") -> 1
G46: ='2062 Bridge'!B21 -> 120 | M46: =SUM(A46:L46) -> 120 | N46: =LEFT('2062 Bridge'!A21,3) -> 605 | O46: =RIGHT('2062 Bridge'!A21,5) -> 11000 | P46: =M46 -> 120 | Q46: ='2062 Bridge'!C21 -> FT | R46: ='2062 Bridge'!D21 -> 6" CONSTRUCTION UNDERDRAINS | U46: =N46&"E"&O46 -> 605E11000 | W46: =IF(P46=[4]SimpleForm!AC50,1,"BAD") -> 1 | X46: =IF(Q46=[4]SimpleForm!AD50,1,"BAD") -> 1 | Y46: =IF(R46=[4]SimpleForm!AE50,1,"BAD") -> 1
C47: =Pavement!S24 -> 40 | M47: 40 | N47: =LEFT(Pavement!S2,3) -> 605 | O47: =RIGHT(Pavement!S2,5) -> 31100 | P47: 40 | Q47: =Pavement!S10 -> FT | R47: =Pavement!S3 -> AGGREGATE DRAINS | U47: 605E31100 | W47: =IF(P47=[4]SimpleForm!AC51,1,"BAD") -> 1 | X47: =IF(Q47=[4]SimpleForm!AD51,1,"BAD") -> 1 | Y47: =IF(R47=[4]SimpleForm!AE51,1,"BAD") -> 1
D48: =Plan!T28 -> 37 | M48: 37 | N48: =LEFT(Plan!T2,3) -> 611 | O48: =RIGHT(Plan!T2,5) -> 04900 | P48: 37 | Q48: =Plan!T14 -> FT | R48: =Plan!T3 -> 12" CONDUIT, TYPE D | U48: 611E04900 | W48: =IF(P48=[4]SimpleForm!AC52,1,"BAD") -> 1 | X48: =IF(Q48=[4]SimpleForm!AD52,1,"BAD") -> 1 | Y48: =IF(R48=[4]SimpleForm!AE52,1,"BAD") -> 1
D49: =Plan!U28 -> 23 | M49: 23 | N49: =LEFT(Plan!U2,3) -> 611 | O49: =RIGHT(Plan!U2,5) -> 16600 | P49: 23 | Q49: =Plan!U14 -> FT | R49: =Plan!U3 -> 36" CONDUIT, TYPE C | U49: 611E16600 | W49: =IF(P49=[4]SimpleForm!AC53,1,"BAD") -> 1 | X49: =IF(Q49=[4]SimpleForm!AD53,1,"BAD") -> 1 | Y49: =IF(R49=[4]SimpleForm!AE53,1,"BAD") -> 1
G50: ='2062 Bridge'!B22 -> 42 | M50: 42 | N50: =LEFT('2062 Bridge'!A22,3) -> 611 | O50: =RIGHT('2062 Bridge'!A22,5) -> 96330 | P50: 42 | Q50: ='2062 Bridge'!C22 -> FT | R50: ='2062 Bridge'!D22 -> 14' X 8' CONDUIT, TYPE A, 706.05 | U50: 611E96330 | W50: =IF(P50=[4]SimpleForm!AC54,1,"BAD") -> 1 | X50: =IF(Q50=[4]SimpleForm!AD54,1,"BAD") -> 1 | Y50: =IF(R50=[4]SimpleForm!AE54,1,"BAD") -> 1
F52: ='0811 Bridge'!B19 -> 48 | M52: 48 | N52: =LEFT('0811 Bridge'!A19,3) -> 611 | O52: =RIGHT('0811 Bridge'!A19,5) -> 96470 | P52: 48 | Q52: ='0811 Bridge'!C19 -> FT | R52: ='0811 Bridge'!D19 -> 18' X 7' CONDUIT, TYPE A, 706.05 | U52: 611E96470 | W52: =IF(P52=[4]SimpleForm!AC56,1,"BAD") -> 1 | X52: =IF(Q52=[4]SimpleForm!AD56,1,"BAD") -> 1 | Y52: =IF(R52=[4]SimpleForm!AE56,1,"BAD") -> 1
W53: =IF(P53=[4]SimpleForm!AC57,1,"BAD") -> 1 | X53: =IF(Q53=[4]SimpleForm!AD57,1,"BAD") -> 1 | Y53: =IF(R53=[4]SimpleForm!AE57,1,"BAD") -> 1
R54: PAVEMENT | V54: =R54 -> PAVEMENT | W54: =IF(P54=[4]SimpleForm!AC58,1,"BAD") -> 1 | X54: =IF(Q54=[4]SimpleForm!AD58,1,"BAD") -> 1 | Y54: =IF(R54=[4]SimpleForm!AE58,1,"BAD") -> 1
C55: =Pavement!M24 -> 268 | M55: 268 | N55: =LEFT(Pavement!M2,3) -> 254 | O55: =RIGHT(Pavement!M2,5) -> 01000 | P55: 268 | Q55: =Pavement!M10 -> SY | R55: =Pavement!M3 -> PAVEMENT PLANING, ASPHALT CONCRETE, 1.50" | U55: 254E01000 | W55: =IF(P55=[4]SimpleForm!AC59,1,"BAD") -> 1 | X55: =IF(Q55=[4]SimpleForm!AD59,1,"BAD") -> 1 | Y55: =IF(R55=[4]SimpleForm!AE59,1,"BAD") -> 1
B56: 850 | M56: 850 | N56: 254 | O56: 01000 | P56: 850 | Q56: SY | R56: PAVEMENT PLANING, ASPHALT CONCRETE, VARIABLE DEPTH | U56: 254E01000 | W56: =IF(P56=[4]SimpleForm!AC60,1,"BAD") -> 1 | X56: =IF(Q56=[4]SimpleForm!AD60,1,"BAD") -> 1 | Y56: =IF(R56=[4]SimpleForm!AE60,1,"BAD") -> 1
C57: =Pavement!N24 -> 103 | M57: 103 | N57: =LEFT(Pavement!N2,3) -> 301 | O57: =RIGHT(Pavement!N2,5) -> 56000 | P57: 103 | Q57: =Pavement!N10 -> CY | R57: =Pavement!N3 -> ASPHALT CONCRETE BASE, PG64-22, (449) | U57: 301E56000 | W57: =IF(P57=[4]SimpleForm!AC61,1,"BAD") -> 1 | X57: =IF(Q57=[4]SimpleForm!AD61,1,"BAD") -> 1 | Y57: =IF(R57=[4]SimpleForm!AE61,1,"BAD") -> 1
C58: =Pavement!O24 -> 87 | M58: 87 | N58: =LEFT(Pavement!O2,3) -> 304 | O58: =RIGHT(Pavement!O2,5) -> 20000 | P58: 87 | Q58: =Pavement!O10 -> CY | R58: =Pavement!O3 -> AGGREGATE BASE | U58: 304E20000 | W58: =IF(P58=[4]SimpleForm!AC62,1,"BAD") -> 1 | X58: =IF(Q58=[4]SimpleForm!AD62,1,"BAD") -> 1 | Y58: =IF(R58=[4]SimpleForm!AE62,1,"BAD") -> 1
B59: 50 | C59: =Pavement!Q24 -> 85 | M59: 135 | N59: =LEFT(Pavement!Q2,3) -> 407 | O59: =RIGHT(Pavement!Q2,5) -> 20000 | P59: 135 | Q59: =Pavement!Q10 -> GAL | R59: =Pavement!Q3 -> NON-TRACKING TACK COAT | U59: 407E20000 | W59: =IF(P59=[4]SimpleForm!AC63,1,"BAD") -> 1 | X59: =IF(Q59=[4]SimpleForm!AD63,1,"BAD") -> 1 | Y59: =IF(R59=[4]SimpleForm!AE63,1,"BAD") -> 1
W60: =IF(P60=[4]SimpleForm!AC64,1,"BAD") -> 1 | X60: =IF(Q60=[4]SimpleForm!AD64,1,"BAD") -> 1 | Y60: =IF(R60=[4]SimpleForm!AE64,1,"BAD") -> 1
C61: =Pavement!R24 -> 42 | M61: 42 | N61: =LEFT(Pavement!R2,3) -> 441 | O61: =RIGHT(Pavement!R2,5) -> 70000 | P61: 42 | Q61: =Pavement!R10 -> CY | R61: =Pavement!R3 -> ASPHALT CONCRETE SURFACE COURSE, TYPE 1, (449), PG64-22 | U61: 441E70000 | W61: =IF(P61=[4]SimpleForm!AC65,1,"BAD") -> 1 | X61: =IF(Q61=[4]SimpleForm!AD65,1,"BAD") -> 1 | Y61: =IF(R61=[4]SimpleForm!AE65,1,"BAD") -> 1
B62: 10 | M62: 10 | N62: =LEFT(Plan!V2,3) -> 617 | O62: =RIGHT(Plan!V2,5) -> 10100 | P62: 10 | Q62: CY | R62: COMPACTED AGGREGATE | U62: 617E10100 | W62: =IF(P62=[4]SimpleForm!AC66,1,"BAD") -> 1 | X62: =IF(Q62=[4]SimpleForm!AD66,1,"BAD") -> 1 | Y62: =IF(R62=[4]SimpleForm!AE66,1,"BAD") -> 1
W63: =IF(P63=[4]SimpleForm!AC67,1,"BAD") -> 1 | X63: =IF(Q63=[4]SimpleForm!AD67,1,"BAD") -> 1 | Y63: =IF(R63=[4]SimpleForm!AE67,1,"BAD") -> 1
R64: TRAFFIC CONTROL | V64: =R64 -> TRAFFIC CONTROL | W64: =IF(P64=[4]SimpleForm!AC68,1,"BAD") -> 1 | X64: =IF(Q64=[4]SimpleForm!AD68,1,"BAD") -> 1 | Y64: =IF(R64=[4]SimpleForm!AE68,1,"BAD") -> 1
D65: ='Traffic Control'!F15 -> 4 | M65: 4 | N65: =LEFT('Traffic Control'!F2,3) -> 621 | O65: =RIGHT('Traffic Control'!F2,5) -> 00100 | P65: 4 | Q65: ='Traffic Control'!F10 -> EACH | R65: ='Traffic Control'!F3 -> RPM | U65: 621E00100 | W65: =IF(P65=[4]SimpleForm!AC69,1,"BAD") -> 1 | X65: =IF(Q65=[4]SimpleForm!AD69,1,"BAD") -> 1 | Y65: =IF(R65=[4]SimpleForm!AE69,1,"BAD") -> 1
D66: ='Traffic Control'!G15 -> 4 | M66: 4 | N66: =LEFT('Traffic Control'!G2,3) -> 621 | O66: =RIGHT('Traffic Control'!G2,5) -> 54000 | P66: 4 | Q66: ='Traffic Control'!G10 -> EACH | R66: ='Traffic Control'!G3 -> RAISED PAVEMENT MARKER REMOVED | U66: 621E54000 | W66: =IF(P66=[4]SimpleForm!AC70,1,"BAD") -> 1 | X66: =IF(Q66=[4]SimpleForm!AD70,1,"BAD") -> 1 | Y66: =IF(R66=[4]SimpleForm!AE70,1,"BAD") -> 1
D67: =Plan!W28 -> 17 | M67: 17 | N67: =LEFT(Plan!W2,3) -> 626 | O67: =RIGHT(Plan!W2,5) -> 00110 | P67: 17 | Q67: =Plan!W14 -> EACH | R67: =Plan!W3 -> BARRIER REFLECTOR, TYPE 2, BI-DIRECTIONAL | U67: 626E00110 | W67: =IF(P67=[4]SimpleForm!AC71,1,"BAD") -> 1 | X67: =IF(Q67=[4]SimpleForm!AD71,1,"BAD") -> 1 | Y67: =IF(R67=[4]SimpleForm!AE71,1,"BAD") -> 1
B68: 0.2 | M68: 0.2 | N68: 642 | O68: 00100 | P68: 0.2 | Q68: MILE | R68: EDGE LINE, 4", TYPE 1 | U68: 642E00100 | W68: =IF(P68=[4]SimpleForm!AC72,1,"BAD") -> 1 | X68: =IF(Q68=[4]SimpleForm!AD72,1,"BAD") -> 1 | Y68: =IF(R68=[4]SimpleForm!AE72,1,"BAD") -> 1
D69: ='Traffic Control'!H15 -> 0.08 | M69: 0.08 | N69: =LEFT('Traffic Control'!H2,3) -> 642 | O69: =RIGHT('Traffic Control'!H2,5) -> 00104 | P69: 0.08 | Q69: ='Traffic Control'!H10 -> MILE | R69: ='Traffic Control'!H3 -> EDGE LINE, 6", TYPE 1 | U69: 642E00104 | W69: =IF(P69=[4]SimpleForm!AC73,1,"BAD") -> 1 | X69: =IF(Q69=[4]SimpleForm!AD73,1,"BAD") -> 1 | Y69: =IF(R69=[4]SimpleForm!AE73,1,"BAD") -> 1
W70: =IF(P70=[4]SimpleForm!AC74,1,"BAD") -> 1 | X70: =IF(Q70=[4]SimpleForm!AD74,1,"BAD") -> 1 | Y70: =IF(R70=[4]SimpleForm!AE74,1,"BAD") -> 1
D71: ='Traffic Control'!I15 -> 0.04 | M71: 0.04 | N71: =LEFT('Traffic Control'!I2,3) -> 642 | O71: =RIGHT('Traffic Control'!I2,5) -> 00300 | P71: 0.04 | Q71: ='Traffic Control'!I10 -> MILE | R71: ='Traffic Control'!I3 -> CENTER LINE, TYPE 1 | U71: 642E00300 | W71: =IF(P71=[4]SimpleForm!AC75,1,"BAD") -> 1 | X71: =IF(Q71=[4]SimpleForm!AD75,1,"BAD") -> 1 | Y71: =IF(R71=[4]SimpleForm!AE75,1,"BAD") -> 1

Sheet GG002
M1: PARTICIPATION
S3: SEE
A4: SHEET NUMBER | M4: 01/STR/10 | N4: ITEM | O4: ITEM | P4: GRAND | Q4: UNIT | R4: DESCRIPTION | S4: SHEET
S5: NO.
O6: EXT | P6: TOTAL
A8: ='sht mgr'!I4 -> P.3 | B8: ='sht mgr'!I5&"-"&'sht mgr'!I7 -> P.4-P.6 | C8: ='sht mgr'!I13 -> P.12 | D8: ='sht mgr'!I14 -> P.13 | E8: ='sht mgr'!I15 -> P.14 | F8: ='sht mgr'!I31 -> P.30 | G8: ='sht mgr'!I39 -> P.38 | W8: CHECKS
R9: STRUCTURE 20 FOOT SPAN AND UNDER (MRW-314-0811, SFN: 5903034) | V9: =R9 -> STRUCTURE 20 FOOT SPAN AND UNDER (MRW-314-0811, SFN: 5903034) | W9: QTY | X9: UNIT | Y9: DESC
F10: ='0811 Bridge'!B4 -> LS | M10: =F10 -> LS | N10: =LEFT('0811 Bridge'!A4,3) -> 202 | O10: =RIGHT('0811 Bridge'!A4,5) -> 11000 | P10: =M10 -> LS | R10: ='0811 Bridge'!D4 -> STRUCTURE REMOVED | U10: =N10&"E"&O10 -> 202E11000 | W10: =IF(P10=[4]SimpleForm!AC78,1,"BAD") -> 1 | X10: =IF(Q10=[4]SimpleForm!AD78,1,"BAD") -> 1 | Y10: =IF(R10=[4]SimpleForm!AE78,1,"BAD") -> 1
F11: ='0811 Bridge'!B5 -> LS | M11: LS | N11: =LEFT('0811 Bridge'!A5,3) -> 503 | O11: =RIGHT('0811 Bridge'!A5,5) -> 11100 | P11: LS | R11: ='0811 Bridge'!D5 -> COFFERDAMS AND EXCAVATION BRACING | U11: 503E11100 | W11: =IF(P11=[4]SimpleForm!AC79,1,"BAD") -> 1 | X11: =IF(Q11=[4]SimpleForm!AD79,1,"BAD") -> 1 | Y11: =IF(R11=[4]SimpleForm!AE79,1,"BAD") -> 1
F12: ='0811 Bridge'!B6 -> LS | M12: LS | N12: =LEFT('0811 Bridge'!A6,3) -> 503 | O12: =RIGHT('0811 Bridge'!A6,5) -> 21300 | P12: LS | R12: ='0811 Bridge'!D6 -> UNCLASSIFIED EXCAVATION | U12: 503E21300 | W12: =IF(P12=[4]SimpleForm!AC80,1,"BAD") -> 1 | X12: =IF(Q12=[4]SimpleForm!AD80,1,"BAD") -> 1 | Y12: =IF(R12=[4]SimpleForm!AE80,1,"BAD") -> 1
F13: ='0811 Bridge'!B7 -> 4235 | M13: 4235 | N13: =LEFT('0811 Bridge'!A7,3) -> 509 | O13: =RIGHT('0811 Bridge'!A7,5) -> 10000 | P13: 4235 | Q13: ='0811 Bridge'!C7 -> LB | R13: ='0811 Bridge'!D7 -> EPOXY COATED STEEL REINFORCEMENT | U13: 509E10000 | W13: =IF(P13=[4]SimpleForm!AC81,1,"BAD") -> 1 | X13: =IF(Q13=[4]SimpleForm!AD81,1,"BAD") -> 1 | Y13: =IF(R13=[4]SimpleForm!AE81,1,"BAD") -> 1
F14: ='0811 Bridge'!B9 -> 55 | M14: 55 | N14: =LEFT('0811 Bridge'!A9,3) -> 511 | O14: =RIGHT('0811 Bridge'!A9,5) -> 46510 | P14: 55 | Q14: ='0811 Bridge'!C9 -> CY | R14: ='0811 Bridge'!D9 -> CLASS QC1 CONCRETE, FOOTING | U14: 511E46510 | W14: =IF(P14=[4]SimpleForm!AC82,1,"BAD") -> 1 | X14: =IF(Q14=[4]SimpleForm!AD82,1,"BAD") -> 1 | Y14: =IF(R14=[4]SimpleForm!AE82,1,"BAD") -> 1
W15: =IF(P15=[4]SimpleForm!AC83,1,"BAD") -> 1 | X15: =IF(Q15=[4]SimpleForm!AD83,1,"BAD") -> 1 | Y15: =IF(R15=[4]SimpleForm!AE83,1,"BAD") -> 1
F16: ='0811 Bridge'!B10 -> 1 | M16: 1 | N16: =LEFT('0811 Bridge'!A10,3) -> 511 | O16: =RIGHT('0811 Bridge'!A10,5) -> 46610 | P16: 1 | Q16: ='0811 Bridge'!C10 -> CY | R16: ='0811 Bridge'!D10 -> CLASS QC1 CONCRETE, HEADWALL | U16: 511E46610 | W16: =IF(P16=[4]SimpleForm!AC84,1,"BAD") -> 1 | X16: =IF(Q16=[4]SimpleForm!AD84,1,"BAD") -> 1 | Y16: =IF(R16=[4]SimpleForm!AE84,1,"BAD") -> 1
F17: ='0811 Bridge'!B11 -> 94 | M17: 94 | N17: =LEFT('0811 Bridge'!A11,3) -> 512 | O17: =RIGHT('0811 Bridge'!A11,5) -> 10050 | P17: 94 | Q17: ='0811 Bridge'!C11 -> SY | R17: ='0811 Bridge'!D11 -> SEALING OF CONCRETE SURFACES (NON-EPOXY) | U17: 512E10050 | W17: =IF(P17=[4]SimpleForm!AC85,1,"BAD") -> 1 | X17: =IF(Q17=[4]SimpleForm!AD85,1,"BAD") -> 1 | Y17: =IF(R17=[4]SimpleForm!AE85,1,"BAD") -> 1
F18: ='0811 Bridge'!B12 -> 112 | M18: 112 | N18: =LEFT('0811 Bridge'!A12,3) -> 512 | O18: =RIGHT('0811 Bridge'!A12,5) -> 33000 | P18: 112 | Q18: ='0811 Bridge'!C12 -> SY | R18: ='0811 Bridge'!D12 -> TYPE 2 WATERPROOFING | U18: 512E33000 | W18: =IF(P18=[4]SimpleForm!AC86,1,"BAD") -> 1 | X18: =IF(Q18=[4]SimpleForm!AD86,1,"BAD") -> 1 | Y18: =IF(R18=[4]SimpleForm!AE86,1,"BAD") -> 1
F19: ='0811 Bridge'!B13 -> 115 | M19: 115 | N19: =LEFT('0811 Bridge'!A13,3) -> 512 | O19: =RIGHT('0811 Bridge'!A13,5) -> 33010 | P19: 115 | Q19: ='0811 Bridge'!C13 -> SY | R19: ='0811 Bridge'!D13 -> TYPE 3 WATERPROOFING | U19: 512E33010 | W19: =IF(P19=[4]SimpleForm!AC87,1,"BAD") -> 1 | X19: =IF(Q19=[4]SimpleForm!AD87,1,"BAD") -> 1 | Y19: =IF(R19=[4]SimpleForm!AE87,1,"BAD") -> 1
F20: ='0811 Bridge'!B15 -> 42 | M20: 42 | N20: =LEFT('0811 Bridge'!A15,3) -> 516 | O20: =RIGHT('0811 Bridge'!A15,5) -> 13601 | P20: 42 | Q20: ='0811 Bridge'!C15 -> SF | R20: ='0811 Bridge'!D15 -> 1" PREFORMED EXPANSION JOINT FILLER, AS PER PLAN | S20: ='sht mgr'!I30 -> P.29 | U20: 516E13601 | W20: =IF(P20=[4]SimpleForm!AC88,1,"BAD") -> 1 | X20: =IF(Q20=[4]SimpleForm!AD88,1,"BAD") -> 1 | Y20: =IF(R20=[4]SimpleForm!AE88,1,"BAD") -> 1
W21: =IF(P21=[4]SimpleForm!AC89,1,"BAD") -> 1 | X21: =IF(Q21=[4]SimpleForm!AD89,1,"BAD") -> 1 | Y21: =IF(R21=[4]SimpleForm!AE89,1,"BAD") -> 1
F22: ='0811 Bridge'!B16 -> 29 | M22: 29 | N22: =LEFT('0811 Bridge'!A16,3) -> 518 | O22: =RIGHT('0811 Bridge'!A16,5) -> 21200 | P22: 29 | Q22: ='0811 Bridge'!C16 -> CY | R22: ='0811 Bridge'!D16 -> POROUS BACKFILL WITH GEOTEXTILE FABRIC | U22: 518E21200 | W22: =IF(P22=[4]SimpleForm!AC90,1,"BAD") -> 1 | X22: =IF(Q22=[4]SimpleForm!AD90,1,"BAD") -> 1 | Y22: =IF(R22=[4]SimpleForm!AE90,1,"BAD") -> 1
F23: ='0811 Bridge'!B21 -> 564 | M23: 564 | N23: =LEFT('0811 Bridge'!A21,3) -> 851 | O23: =RIGHT('0811 Bridge'!A21,5) -> 10000 | P23: 564 | Q23: ='0811 Bridge'!C21 -> SF | R23: ='0811 Bridge'!D21 -> PRECAST GRAVITY AND SEMIGRAVITY RETAINING WALL | U23: 851E10000 | W23: =IF(P23=[4]SimpleForm!AC91,1,"BAD") -> 1 | X23: =IF(Q23=[4]SimpleForm!AD91,1,"BAD") -> 1 | Y23: =IF(R23=[4]SimpleForm!AE91,1,"BAD") -> 1
W24: =IF(P24=[4]SimpleForm!AC92,1,"BAD") -> 1 | X24: =IF(Q24=[4]SimpleForm!AD92,1,"BAD") -> 1 | Y24: =IF(R24=[4]SimpleForm!AE92,1,"BAD") -> 1
R25: STRUCTURE 20 FOOT SPAN AND UNDER (MRW-314-2062, SFN: 5903395) | V25: =R25 -> STRUCTURE 20 FOOT SPAN AND UNDER (MRW-314-2062, SFN: 5903395) | W25: =IF(P25=[4]SimpleForm!AC93,1,"BAD") -> 1 | X25: =IF(Q25=[4]SimpleForm!AD93,1,"BAD") -> 1 | Y25: =IF(R25=[4]SimpleForm!AE93,1,"BAD") -> 1
G26: ='2062 Bridge'!B4 -> LS | M26: =G26 -> LS | N26: =LEFT('2062 Bridge'!A4,3) -> 202 | O26: =RIGHT('2062 Bridge'!A4,5) -> 11000 | P26: =M26 -> LS | R26: ='2062 Bridge'!D4 -> STRUCTURE REMOVED | U26: 202E11000 | W26: =IF(P26=[4]SimpleForm!AC94,1,"BAD") -> 1 | X26: =IF(Q26=[4]SimpleForm!AD94,1,"BAD") -> 1 | Y26: =IF(R26=[4]SimpleForm!AE94,1,"BAD") -> 1
G27: ='2062 Bridge'!B5 -> LS | M27: LS | N27: =LEFT('2062 Bridge'!A5,3) -> 503 | O27: =RIGHT('2062 Bridge'!A5,5) -> 11100 | P27: LS | R27: ='2062 Bridge'!D5 -> COFFERDAMS AND EXCAVATION BRACING | U27: 503E11100 | W27: =IF(P27=[4]SimpleForm!AC95,1,"BAD") -> 1 | X27: =IF(Q27=[4]SimpleForm!AD95,1,"BAD") -> 1 | Y27: =IF(R27=[4]SimpleForm!AE95,1,"BAD") -> 1
G28: ='2062 Bridge'!B6 -> LS | M28: LS | N28: =LEFT('2062 Bridge'!A6,3) -> 503 | O28: =RIGHT('2062 Bridge'!A6,5) -> 21300 | P28: LS | R28: ='2062 Bridge'!D6 -> UNCLASSIFIED EXCAVATION | U28: 503E21300 | W28: =IF(P28=[4]SimpleForm!AC96,1,"BAD") -> 1 | X28: =IF(Q28=[4]SimpleForm!AD96,1,"BAD") -> 1 | Y28: =IF(R28=[4]SimpleForm!AE96,1,"BAD") -> 1
G29: ='2062 Bridge'!B7 -> 60 | M29: 60 | N29: =LEFT('2062 Bridge'!A7,3) -> 503 | O29: =RIGHT('2062 Bridge'!A7,5) -> 21101 | P29: 60 | Q29: ='2062 Bridge'!C7 -> CY | R29: ='2062 Bridge'!D7 -> UNCLASSIFIED EXCAVATION, AS PER PLAN | S29: ='sht mgr'!I38 -> P.37 | U29: 503E21101 | W29: =IF(P29=[4]SimpleForm!AC97,1,"BAD") -> 1 | X29: =IF(Q29=[4]SimpleForm!AD97,1,"BAD") -> 1 | Y29: =IF(R29=[4]SimpleForm!AE97,1,"BAD") -> 1
G30: ='2062 Bridge'!B9 -> 5176 | M30: 5176 | N30: =LEFT('2062 Bridge'!A9,3) -> 509 | O30: =RIGHT('2062 Bridge'!A9,5) -> 10000 | P30: 5176 | Q30: ='2062 Bridge'!C9 -> LB | R30: ='2062 Bridge'!D9 -> EPOXY COATED STEEL REINFORCEMENT | U30: 509E10000 | W30: =IF(P30=[4]SimpleForm!AC98,1,"BAD") -> 1 | X30: =IF(Q30=[4]SimpleForm!AD98,1,"BAD") -> 1 | Y30: =IF(R30=[4]SimpleForm!AE98,1,"BAD") -> 1
W31: =IF(P31=[4]SimpleForm!AC99,1,"BAD") -> 1 | X31: =IF(Q31=[4]SimpleForm!AD99,1,"BAD") -> 1 | Y31: =IF(R31=[4]SimpleForm!AE99,1,"BAD") -> 1
G32: ='2062 Bridge'!B10 -> 82 | M32: 82 | N32: =LEFT('2062 Bridge'!A10,3) -> 511 | O32: =RIGHT('2062 Bridge'!A10,5) -> 46510 | P32: 82 | Q32: ='2062 Bridge'!C10 -> CY | R32: ='2062 Bridge'!D10 -> CLASS QC1 CONCRETE, FOOTING | U32: 511E46510 | W32: =IF(P32=[4]SimpleForm!AC100,1,"BAD") -> 1 | X32: =IF(Q32=[4]SimpleForm!AD100,1,"BAD") -> 1 | Y32: =IF(R32=[4]SimpleForm!AE100,1,"BAD") -> 1
G33: ='2062 Bridge'!B11 -> 1 | M33: 1 | N33: =LEFT('2062 Bridge'!A11,3) -> 511 | O33: =RIGHT('2062 Bridge'!A11,5) -> 46610 | P33: 1 | Q33: ='2062 Bridge'!C11 -> CY | R33: ='2062 Bridge'!D11 -> CLASS QC1 CONCRETE, HEADWALL | U33: 511E46610 | W33: =IF(P33=[4]SimpleForm!AC101,1,"BAD") -> 1 | X33: =IF(Q33=[4]SimpleForm!AD101,1,"BAD") -> 1 | Y33: =IF(R33=[4]SimpleForm!AE101,1,"BAD") -> 1
G34: ='2062 Bridge'!B12 -> 89 | M34: 89 | N34: =LEFT('2062 Bridge'!A12,3) -> 512 | O34: =RIGHT('2062 Bridge'!A12,5) -> 10050 | P34: 89 | Q34: ='2062 Bridge'!C12 -> SY | R34: ='2062 Bridge'!D12 -> SEALING OF CONCRETE SURFACES (NON-EPOXY) | U34: 512E10050 | W34: =IF(P34=[4]SimpleForm!AC102,1,"BAD") -> 1 | X34: =IF(Q34=[4]SimpleForm!AD102,1,"BAD") -> 1 | Y34: =IF(R34=[4]SimpleForm!AE102,1,"BAD") -> 1
G35: ='2062 Bridge'!B13 -> 101 | M35: 101 | N35: =LEFT('2062 Bridge'!A13,3) -> 512 | O35: =RIGHT('2062 Bridge'!A13,5) -> 33000 | P35: 101 | Q35: ='2062 Bridge'!C13 -> SY | R35: ='2062 Bridge'!D13 -> TYPE 2 WATERPROOFING | U35: 512E33000 | W35: =IF(P35=[4]SimpleForm!AC103,1,"BAD") -> 1 | X35: =IF(Q35=[4]SimpleForm!AD103,1,"BAD") -> 1 | Y35: =IF(R35=[4]SimpleForm!AE103,1,"BAD") -> 1
G36: ='2062 Bridge'!B15 -> 81 | M36: 81 | N36: =LEFT('2062 Bridge'!A15,3) -> 512 | O36: =RIGHT('2062 Bridge'!A15,5) -> 33010 | P36: 81 | Q36: ='2062 Bridge'!C15 -> SY | R36: ='2062 Bridge'!D15 -> TYPE 3 WATERPROOFING | U36: 512E33010 | W36: =IF(P36=[4]SimpleForm!AC104,1,"BAD") -> 1 | X36: =IF(Q36=[4]SimpleForm!AD104,1,"BAD") -> 1 | Y36: =IF(R36=[4]SimpleForm!AE104,1,"BAD") -> 1
W37: =IF(P37=[4]SimpleForm!AC105,1,"BAD") -> 1 | X37: =IF(Q37=[4]SimpleForm!AD105,1,"BAD") -> 1 | Y37: =IF(R37=[4]SimpleForm!AE105,1,"BAD") -> 1
G38: ='2062 Bridge'!B16 -> 53 | M38: 53 | N38: =LEFT('2062 Bridge'!A16,3) -> 516 | O38: =RIGHT('2062 Bridge'!A16,5) -> 13601 | P38: 53 | Q38: ='2062 Bridge'!C16 -> SF | R38: ='2062 Bridge'!D16 -> 1" PREFORMED EXPANSION JOINT FILLER, AS PER PLAN | S38: ='sht mgr'!I38 -> P.37 | U38: 516E13601 | W38: =IF(P38=[4]SimpleForm!AC106,1,"BAD") -> 1 | X38: =IF(Q38=[4]SimpleForm!AD106,1,"BAD") -> 1 | Y38: =IF(R38=[4]SimpleForm!AE106,1,"BAD") -> 1
G39: ='2062 Bridge'!B17 -> 53 | M39: 53 | N39: =LEFT('2062 Bridge'!A17,3) -> 518 | O39: =RIGHT('2062 Bridge'!A17,5) -> 21200 | P39: 53 | Q39: ='2062 Bridge'!C17 -> CY | R39: ='2062 Bridge'!D17 -> POROUS BACKFILL WITH GEOTEXTILE FABRIC | U39: 518E21200 | W39: =IF(P39=[4]SimpleForm!AC107,1,"BAD") -> 1 | X39: =IF(Q39=[4]SimpleForm!AD107,1,"BAD") -> 1 | Y39: =IF(R39=[4]SimpleForm!AE107,1,"BAD") -> 1
G40: ='2062 Bridge'!B23 -> 802 | M40: 802 | N40: =LEFT('2062 Bridge'!A23,3) -> 851 | O40: =RIGHT('2062 Bridge'!A23,5) -> 10000 | P40: 802 | Q40: ='2062 Bridge'!C23 -> SF | R40: ='2062 Bridge'!D23 -> PRECAST GRAVITY AND SEMIGRAVITY RETAINING WALL | U40: 851E10000 | W40: =IF(P40=[4]SimpleForm!AC108,1,"BAD") -> 1 | X40: =IF(Q40=[4]SimpleForm!AD108,1,"BAD") -> 1 | Y40: =IF(R40=[4]SimpleForm!AE108,1,"BAD") -> 1
W41: =IF(P41=[4]SimpleForm!AC109,1,"BAD") -> 1 | X41: =IF(Q41=[4]SimpleForm!AD109,1,"BAD") -> 1 | Y41: =IF(R41=[4]SimpleForm!AE109,1,"BAD") -> 1
R42: MAINTENANCE OF TRAFFIC | V42: =R42 -> MAINTENANCE OF TRAFFIC | W42: =IF(P42=[4]SimpleForm!AC110,1,"BAD") -> 1 | X42: =IF(Q42=[4]SimpleForm!AD110,1,"BAD") -> 1 | Y42: =IF(R42=[4]SimpleForm!AE110,1,"BAD") -> 1
B43: 48 | M43: =SUM(A43:L43) -> 48 | N43: 614 | O43: 11110 | P43: =M43 -> 48 | Q43: HOUR | R43: LAW ENFORCEMENT OFFICER WITH PATROL CAR FOR ASSISTANCE | U43: 614E11110 | W43: =IF(P43=[4]SimpleForm!AC111,1,"BAD") -> 1 | X43: =IF(Q43=[4]SimpleForm!AD111,1,"BAD") -> 1 | Y43: =IF(R43=[4]SimpleForm!AE111,1,"BAD") -> 1
B44: LS | M44: =B44 -> LS | N44: 614 | O44: 12420 | P44: =M44 -> LS | R44: DETOUR SIGNING | U44: 614E12420 | W44: =IF(P44=[4]SimpleForm!AC112,1,"BAD") -> 1 | X44: =IF(Q44=[4]SimpleForm!AD112,1,"BAD") -> 1 | Y44: =IF(R44=[4]SimpleForm!AE112,1,"BAD") -> 1
B45: 70 | M45: =SUM(A45:L45) -> 70 | N45: 614 | O45: 13000 | P45: =M45 -> 70 | Q45: CY | R45: ASPHALT CONCRETE FOR MAINTAINING TRAFFIC | U45: 614E13000 | W45: =IF(P45=[4]SimpleForm!AC113,1,"BAD") -> 1 | X45: =IF(Q45=[4]SimpleForm!AD113,1,"BAD") -> 1 | Y45: =IF(R45=[4]SimpleForm!AE113,1,"BAD") -> 1
B46: 6 | M46: =SUM(A46:L46) -> 6 | N46: 614 | O46: 18600 | P46: =M46 -> 6 | Q46: SNMT | R46: PORTABLE CHANGEABLE MESSAGE SIGN | U46: 614E18600 | W46: =IF(P46=[4]SimpleForm!AC114,1,"BAD") -> 1 | X46: =IF(Q46=[4]SimpleForm!AD114,1,"BAD") -> 1 | Y46: =IF(R46=[4]SimpleForm!AE114,1,"BAD") -> 1
B47: 2 | M47: =SUM(A47:L47) -> 2 | N47: 616 | O47: 10000 | P47: =M47 -> 2 | Q47: MGAL | R47: WATER | U47: 616E10000 | W47: =IF(P47=[4]SimpleForm!AC115,1,"BAD") -> 1 | X47: =IF(Q47=[4]SimpleForm!AD115,1,"BAD") -> 1 | Y47: =IF(R47=[4]SimpleForm!AE115,1,"BAD") -> 1
W48: =IF(P48=[4]SimpleForm!AC116,1,"BAD") -> 1 | X48: =IF(Q48=[4]SimpleForm!AD116,1,"BAD") -> 1 | Y48: =IF(R48=[4]SimpleForm!AE116,1,"BAD") -> 1
R49: INCIDENTALS | V49: =R49 -> INCIDENTALS | W49: =IF(P49=[4]SimpleForm!AC117,1,"BAD") -> 1 | X49: =IF(Q49=[4]SimpleForm!AD117,1,"BAD") -> 1 | Y49: =IF(R49=[4]SimpleForm!AE117,1,"BAD") -> 1
M50: LS | N50: 614 | O50: 11000 | P50: LS | R50: MAINTAINING TRAFFIC | U50: 614E11000 | W50: =IF(P50=[4]SimpleForm!AC118,1,"BAD") -> 1 | X50: =IF(Q50=[4]SimpleForm!AD118,1,"BAD") -> 1 | Y50: =IF(R50=[4]SimpleForm!AE118,1,"BAD") -> 1
A51: LS | M51: LS | N51: 623 | O51: 10000 | P51: LS | R51: CONSTRUCTION LAYOUT STAKES AND SURVEYING | U51: 623E10000 | W51: =IF(P51=[4]SimpleForm!AC119,1,"BAD") -> 1 | X51: =IF(Q51=[4]SimpleForm!AD119,1,"BAD") -> 1 | Y51: =IF(R51=[4]SimpleForm!AE119,1,"BAD") -> 1
M52: LS | N52: 624 | O52: 10000 | P52: LS | R52: MOBILIZATION | U52: 624E10000 | W52: =IF(P52=[4]SimpleForm!AC120,1,"BAD") -> 1 | X52: =IF(Q52=[4]SimpleForm!AD120,1,"BAD") -> 1 | Y52: =IF(R52=[4]SimpleForm!AE120,1,"BAD") -> 1

Sheet Pavement
A1: LOCATION | D1: DESIGN | J1: QUANTITIES
A2: LOCATION | B2: BEGIN STA | C2: END STA | D2: SECTION | E2: LENGTH | F2: AVG. WIDTH | I2: TOTAL PAVEMENT AREA | J2: 202E23000 | K2: 203E10000 | L2: 204E10000 | M2: 254E01000 | N2: 301E56000 | O2: 304E20000 | Q2: 407E20000 | R2: 441E70000 | S2: 605E31100
F3: LEFT SHOULDER | G3: LANES | H3: RIGHT SHOULDER | J3: PAVEMENT REMOVED | K3: EXCAVATION | L3: SUBGRADE COMPACTION | M3: PAVEMENT PLANING, ASPHALT CONCRETE, 1.50" | N3: ASPHALT CONCRETE BASE, PG64-22, (449) | O3: AGGREGATE BASE | Q3: NON-TRACKING TACK COAT | R3: ASPHALT CONCRETE SURFACE COURSE, TYPE 1, (449), PG64-22 | S3: AGGREGATE DRAINS
O6: PAVEMENT BASE (8" OVER STRUC., 6" OTHERWISE) | P6: AGG. SHLDR (2.76 SF/LF EACH SIDE)
E10: FT | F10: FT | G10: FT | H10: FT | I10: SY | J10: SY | K10: CY | L10: SY | M10: SY | N10: CY | O10: CY | P10: CY | Q10: GAL | R10: CY | S10: FT
A12: 1 | B12: =GY!B10 -> 245 | C12: =GY!D10 -> 270 | D12: 2 | E12: =ROUND(C12-B12,0) -> 25 | F12: 1 | G12: 22 | H12: 1 | I12: =ROUND(SUM(F12:H12)*E12/9,0) -> 67 | M12: =I12 -> 67 | Q12: =ROUNDUP(0.085*M12,0) -> 6 | R12: =ROUNDUP(1.5/12/3*M12,0) -> 3
A13: 1 | B13: =GY!B4 -> 270 | C13: =GY!D4 -> 341 | D13: 1 | E13: =ROUND(C13-B13,0) -> 71 | F13: 1 | G13: 22 | H13: 1 | I13: =ROUND(SUM(F13:H13)*E13/9,0) -> 189 | J13: =I13 -> 189 | K13: =O13+P13 -> 47 | L13: =I13+ROUNDUP(16/12/3*E13/3*2,0) -> 211 | N13: =ROUNDUP(0.4167/3*25/3*E13/3,0)+ROUNDUP(0.4167/3*24.67/3*E13/3,0) -> 56 | O13: =ROUNDUP(0.5/3*26.67/3*(E13-16)/3,0)+ROUNDUP(0.67/3*26.67/3*16/3,0) -> 39 | P13: =ROUNDUP(2.76/9*E13/3,0) -> 8 | Q13: =ROUNDUP(0.055*I13,0)*2+ROUNDUP(0.055*(24.67*E13/9),0) -> 33 | R13: =ROUNDUP(3/12/3*I13,0) -> 16 | S13: 20
A14: 1 | B14: =GY!B11 -> 341 | C14: =GY!D11 -> 366 | D14: 2 | E14: 25 | F14: 1 | G14: 22 | H14: 1 | I14: =ROUND(SUM(F14:H14)*E14/9,0) -> 67 | M14: =I14 -> 67 | Q14: =ROUNDUP(0.085*M14,0) -> 6 | R14: =ROUNDUP(1.5/12/3*M14,0) -> 3
A16: 1 | B16: 450 | D16: PROP. FIELD DRIVE | I16: 73
A18: 2 | B18: =GY!B13 -> 1165 | C18: =GY!D13 -> 1190 | D18: 2 | E18: =ROUND(C18-B18,0) -> 25 | F18: 1 | G18: 22 | H18: 1 | I18: =ROUND(SUM(F18:H18)*E18/9,0) -> 67 | M18: =I18 -> 67 | Q18: =ROUNDUP(0.085*M18,0) -> 6 | R18: =ROUNDUP(1.5/12/3*M18,0) -> 3
A19: 2 | B19: =GY!B6 -> 1190 | C19: =GY!D6 -> 1250 | D19: 1 | E19: =ROUND(C19-B19,0) -> 60 | F19: 1 | G19: 22 | H19: 1 | I19: =ROUND(SUM(F19:H19)*E19/9,0) -> 160 | J19: =I19 -> 160 | K19: =O19+P19 -> 40 | L19: =I19+ROUNDUP(16/12/3*E19/3*2,0) -> 178 | N19: =ROUNDUP(0.4167/3*25/3*E19/3,0)+ROUNDUP(0.4167/3*24.67/3*E19/3,0) -> 47 | O19: =ROUNDUP(0.5/3*26.67/3*(E19-14)/3,0)+ROUNDUP(0.67/3*26.67/3*14/3,0) -> 33 | P19: =ROUNDUP(2.76/9*E19/3,0) -> 7 | Q19: =ROUNDUP(0.055*I19,0)*2+ROUNDUP(0.055*(24.67*E19/9),0) -> 28 | R19: =ROUNDUP(3/12/3*I19,0) -> 14 | S19: 20
A20: 2 | B20: =GY!B14 -> 1250 | C20: =GY!D14 -> 1275 | D20: 2 | E20: 25 | F20: 1 | G20: 22 | H20: 1 | I20: =ROUND(SUM(F20:H20)*E20/9,0) -> 67 | M20: =I20 -> 67 | Q20: =ROUNDUP(0.085*M20,0) -> 6 | R20: =ROUNDUP(1.5/12/3*M20,0) -> 3
A22: 2 | B22: 1138.5 | C22: 1177.3 | D22: PROP. FIELD DRIVE | I22: 27
A24: TOTALS CARRIED TO GENERAL SUMMARY | J24: =SUM(J11:J23) -> 349 | K24: 87 | L24: 389 | M24: 268 | N24: 103 | O24: =SUM(O11:O23,P11:P23) -> 87 | Q24: 85 | R24: 42 | S24: 40

Sheet Plan
B1: LOCATION | H1: QUANTITIES
B2: SHEET | C2: LOCATION | D2: REF | E2: BEGIN STA. | F2: END STA. | G2: SIDE | I2: 202E35200 | J2: 202E75000 | K2: 202E38001 | L2: 202E42001 | M2: 606E15050 | N2: 606E15150 | O2: 606E15300 | P2: 606E26151 | Q2: 606E26550 | S2: 601E32200 | T2: 611E04900 | U2: 611E16600 | V2: 617E10100 | W2: 626E00110
I3: PIPE REMOVED, OVER 24" | J3: FENCE REMOVED | K3: GUARDRAIL REMOVED, AS PER PLAN | L3: ANCHOR ASSEMBLY REMOVED, TYPE A, AS PER PLAN | M3: GUARDRAIL, TYPE MGS | N3: GUARDRAIL, TYPE MGS HALF POST SPACING | O3: GUARDRAIL, TYPE MGS QUARTER POST SPACING WITH LONG POSTS | P3: ANCHOR ASSEMBLY, MGS TYPE E, AS PER PLAN (MASH2016) | Q3: ANCHOR ASSEMBLY, MGS TYPE T | S3: ROCK CHANNEL PROTECTION, TYPE C WITH FILTER | T3: 12" CONDUIT, TYPE D | U3: 36" CONDUIT, TYPE C | V3: COMPACTED AGGREGATE (3" LIFT x 1' WIDE FOR BERM REPLACEMENT) | W3: BARRIER REFLECTOR, TYPE 2, BI-DIRECTIONAL
I14: FT | J14: FT | K14: FT | L14: EACH | M14: FT | N14: FT | O14: FT | P14: EACH | Q14: EACH | S14: CY | T14: FT | U14: FT | V14: CY | W14: EACH | Z14: LON DOWN | AA14: LON UP
B16: ='sht mgr'!I16 -> P.15 | C16: 1 | D16: GR-1 | E16: 114.2 | F16: 412.3 | G16: RT | K16: 100 | L16: 2 | M16: 187.5 | P16: 2 | V16: =ROUNDUP(3/12/3*((F16-E16)-Pavement!E13)/3*1/3,0) -> 3 | W16: =ROUNDUP((M16++O16+52*P16)/100,0)+1 -> 4 | Z16: 133.31 | AA16: 396.09
B17: =B16 -> P.15 | C17: 1 | D17: GR-2 | E17: 190.2 | F17: 474.6 | G17: LT | K17: 100 | L17: 2 | M17: =25+25+100 -> 150 | N17: 25 | P17: 2 | V17: =ROUNDUP(3/12/3*((F17-E17)-Pavement!E13)/3*1/3,0) -> 2 | W17: =ROUNDUP((M17++O17+52*P17)/100,0)+1 -> 4 | Z17: 219.45 | AA17: 453.01
B19: =B16 -> P.15 | C19: 1 | D19: DR-1 | E19: 433.73 | F19: 470.71 | G19: RT | S19: =ROUND(2*52.7/27,0) -> 4 | T19: 37
B21: ='sht mgr'!I17 -> P.16 | C21: 2 | D21: GR-3 | E21: 1014.4 | F21: 1349.2 | G21: RT | K21: 50 | L21: 1 | M21: =162.5+37.5 -> 200 | O21: 25 | P21: 2 | V21: =ROUNDUP(3/12/3*((F21-E21)-Pavement!E19)/3*1/3,0) -> 3 | W21: =ROUNDUP((M21++O21+52*P21)/100,0)+1 -> 5 | Z21: 1039.5 | AA21: 1332.2
B22: =B21 -> P.16 | C22: 2 | D22: GR-4 | E22: 1171.8 | F22: 1403.9 | G22: LT | K22: 50 | L22: 1 | M22: 200 | O22: 18.75 | Q22: 2 | V22: =ROUNDUP(3/12/3*((F22-E22)-Pavement!E20)/3*1/3,0) -> 2 | W22: =ROUNDUP((M22+12.5*Q22)/100,0)+1 -> 4 | Z22: 1173.6 | AA22: 1400.5
B24: =B21 -> P.16 | C24: 2 | D24: DR-2 | E24: 1179.3 | F24: 1202 | G24: LT | I24: 5 | U24: 23
B26: =B24 -> P.16 | C26: 2 | D26: F-1 | E26: 1062 | G26: RT | J26: 24
B28: TOTALS CARRIED TO GENERAL SUMMARY | I28: =SUM(I15:I27) -> 5 | J28: 24 | K28: =SUM(K15:K27) -> 300 | L28: 6 | M28: 737.5 | N28: 25 | O28: 43.75 | P28: 6 | Q28: =SUM(Q15:Q27) -> 2 | S28: =SUM(S15:S27) -> 4 | T28: 37 | U28: 23 | V28: 10 | W28: =SUM(W15:W27) -> 17

Sheet Traffic Control
A1: LOCATION | F1: ITEM 621 - RPM | H1: ITEM 642 - TRAFFIC PAINT | K1: REMARKS
A2: LOCATION | B2: BEGINS STA. | C2: END STA. | D2: LENGTH | E2: LENGTH | F2: 621E00100 | G2: 621E54000 | H2: 642E00104 | I2: 642E00300
F3: RPM | G3: RAISED PAVEMENT MARKER REMOVED | H3: EDGE LINE, 6", TYPE 1 | I3: CENTER LINE, TYPE 1
H9: WHITE
D10: MI | E10: FT | F10: EACH | G10: EACH | H10: MILE | I10: MILE
A12: 1 | B12: =Pavement!B12 -> 245 | C12: =Pavement!C14 -> 366 | D12: =ROUND(E12/5280,2) -> 0.02 | E12: =ROUND(C12-B12,0) -> 121 | F12: 2 | G12: 2 | H12: =D12*2 -> 0.04 | I12: =D12 -> 0.02
A13: 2 | B13: =Pavement!B18 -> 1165 | C13: =Pavement!C20 -> 1275 | D13: =ROUND(E13/5280,2) -> 0.02 | E13: =ROUND(C13-B13,0) -> 110 | F13: 2 | G13: 2 | H13: =D13*2 -> 0.04 | I13: =D13 -> 0.02
A15: TOTALS CARRIED TO THE GENERAL SUMMARY | F15: =SUM(F11:F14) -> 4 | G15: =SUM(G11:G14) -> 4 | H15: =SUM(H11:H14) -> 0.08 | I15: =SUM(I11:I14) -> 0.04

Sheet Earthwork
A1: SHEET NUMBER | B1: LOCATION | E1: 203 | F1: 203 | G1: 659
E2: EXCAVATION | F2: EMBANKMENT | G2: SEEDING AND MULCHING, CLASS 3B
C3: STATIONS | D3: STATIONS
E5: CY | F5: CY | G5: SY
J6: ITEM 659 - TOPSOIL: | P6: ITEM 659 - REPAIR SEEDING AND MULCHING:
A7: ='sht mgr'!I18 -> P.17 | B7: 1 | C7: ='end area'!B19 -> 100 | D7: ='end area'!B20 -> 125 | F7: ='end area'!E20 -> 1 | G7: ='end area'!I20 -> 14 | J7: THE APPLICATION RATE FOR THIS ITEM IS | P7: THE APPLICATION RATE FOR THIS ITEM IS
A8: =A7 -> P.17 | B8: 1 | C8: =D7 -> 125 | D8: ='end area'!B21 -> 150 | E8: ='end area'!G21 -> 8 | F8: ='end area'!E21 -> 1 | G8: ='end area'!I21 -> 50 | J8: 111 CU YDS PER 1000 SQ YDS OF SEEDING | P8: 5% OF THE SEEDING AREA.
A9: =A8&"-"&A10 -> P.17-P.18 | B9: 1 | C9: =D8 -> 150 | D9: ='end area'!B22 -> 175 | E9: ='end area'!G22 -> 15 | F9: ='end area'!E22 -> 2 | G9: ='end area'!I22 -> 75
A10: ='sht mgr'!I19 -> P.18 | B10: 1 | C10: 175 | D10: ='end area'!B23 -> 200 | E10: ='end area'!G23 -> 20 | F10: ='end area'!E23 -> 3 | G10: ='end area'!I23 -> 98 | J10: =CONCATENATE(G47," SQ YD / 1000 =") -> 1692 SQ YD / 1000 = | K10: =ROUND((G47/1000),1) -> 1.7 | P10: =G47 -> 1692 | Q10: SQ YD OF SEEDING AND
A11: =A10&"-"&A12 -> P.18-P.19 | B11: 1 | C11: 200 | D11: ='end area'!B24 -> 225 | E11: ='end area'!G24 -> 22 | F11: ='end area'!E24 -> 5 | G11: ='end area'!I24 -> 114 | Q11: MULCHING (FROM TABLE)
A12: ='sht mgr'!I20 -> P.19 | B12: 1 | C12: 225 | D12: ='end area'!B25 -> 250 | E12: ='end area'!G25 -> 10 | F12: ='end area'!E25 -> 8 | G12: ='end area'!I25 -> 80 | J12: =CONCATENATE(K10, " X 111 CU YDS =" ) -> 1.7 X 111 CU YDS = | K12: =ROUND((K10*111),0) -> 189 | L12: CU YDS | P12: =CONCATENATE(P10, " SQ YD X 0.05 =") -> 1692 SQ YD X 0.05 = | R12: =ROUND((P10*0.05),0) -> 85 | S12: SQ YDS
A13: =A12&"-"&A14 -> P.19-P.20 | B13: 1 | C13: 250 | D13: ='end area'!B26 -> 275 | E13: ='end area'!G26 -> 1 | F13: ='end area'!E26 -> 8 | G13: ='end area'!I26 -> 48
A14: ='sht mgr'!I21 -> P.20 | B14: 1 | C14: 275 | D14: ='end area'!B27 -> 300 | F14: ='end area'!E27 -> 6 | G14: ='end area'!I27 -> 42 | J14: TOTAL CARRIED TO GENERAL SUMMARY: | P14: TOTAL CARRIED TO GENERAL SUMMARY:
A15: =A14&"-"&A16 -> P.20-P.21 | B15: 1 | C15: 300 | D15: ='end area'!B28 -> 325 | E15: ='end area'!G28 -> 3 | F15: ='end area'!E28 -> 10 | G15: ='end area'!I28 -> 75 | J15: ITEM 659 - TOPSOIL = | L15: =K12 -> 189 | M15: CU YD | P15: ITEM 659 - REPAIR SEEDING = | S15: =R12 -> 85 | T15: SQ YD
A16: ='sht mgr'!I22 -> P.21 | B16: 1 | C16: 325 | D16: ='end area'!B29 -> 350 | E16: ='end area'!G29 -> 10 | F16: ='end area'!E29 -> 11 | G16: ='end area'!I29 -> 110 | P16: AND MULCHING
A17: =A16&"-"&A18 -> P.21-P.22 | B17: 1 | C17: 350 | D17: ='end area'!B30 -> 375 | E17: ='end area'!G30 -> 13 | F17: ='end area'!E30 -> 10 | G17: ='end area'!I30 -> 125
A18: ='sht mgr'!I23 -> P.22 | B18: 1 | C18: 375 | D18: ='end area'!B31 -> 400 | E18: ='end area'!G31 -> 11 | F18: ='end area'!E31 -> 13 | G18: ='end area'!I31 -> 136 | J18: ITEM 659 - COMMERCIAL FERTILIZER:
A19: ='sht mgr'!I23 -> P.22 | B19: 1 | C19: 400 | D19: ='end area'!B32 -> 425 | E19: ='end area'!G32 -> 11 | F19: ='end area'!E32 -> 14 | G19: ='end area'!I32 -> 114 | J19: THE APPLICATION RATE FOR THIS ITEM IS | P19: ITEM 659 - INTER-SEEDING:
A20: =A19&"-"&A21 -> P.22-P.23 | B20: 1 | C20: 425 | D20: ='end area'!B33 -> 450 | E20: ='end area'!G33 -> 7 | F20: ='end area'!E33 -> 15 | G20: ='end area'!I33 -> 67 | J20: 30 POUNDS PER 1000 SQ FT OF SEEDING. | P20: THE APPLICATION RATE FOR THIS ITEM IS
A21: ='sht mgr'!I24 -> P.23 | B21: 1 | C21: 450 | D21: ='end area'!B34 -> 467.44 | F21: ='end area'!E34 -> 13 | G21: ='end area'!I34 -> 49 | P21: 5% OF THE SEEDING AREA.
J22: =G47 -> 1692 | K22: SQ YD OF SEEDING AND
K23: MULCHING (FROM TABLE) | P23: =G47 -> 1692 | Q23: SQ YD OF SEEDING AND
A24: ='sht mgr'!I25 -> P.24 | B24: 2 | C24: =Plan!E21 -> 1014.4 | D24: 1050 | F24: ='end area'!E3 -> 1 | G24: ='end area'!I3 -> 18 | J24: =CONCATENATE(F47, " X 9 SQ FT / SQ YD =") -> 174 X 9 SQ FT / SQ YD = | L24: =ROUND((J22*9),0) -> 15228 | M24: SQ FT | Q24: MULCHING (FROM TABLE)
A25: =A24 -> P.24 | B25: 2 | C25: =D24 -> 1050 | D25: =C25+25 -> 1075 | F25: ='end area'!E4 -> 1 | G25: ='end area'!I4 -> 21 | P25: =CONCATENATE(P23, " SQ YD X 0.05 =") -> 1692 SQ YD X 0.05 = | R25: =ROUND((P23*0.05),0) -> 85 | S25: SQ YDS
A26: =A24 -> P.24 | B26: 2 | C26: =D25 -> 1075 | D26: =C26+25 -> 1100 | F26: ='end area'!E5 -> 1 | G26: ='end area'!I5 -> 21 | J26: =CONCATENATE(L24," / 1,000 =") -> 15228 / 1,000 = | K26: =L24/1000 -> 15.228
A27: =A26&"-"&A28 -> P.24-P.25 | B27: 2 | C27: =D26 -> 1100 | D27: =C27+25 -> 1125 | F27: ='end area'!E6 -> 1 | G27: ='end area'!I6 -> 19 | P27: TOTAL CARRIED TO GENERAL SUMMARY:
A28: ='sht mgr'!I26 -> P.25 | B28: 2 | C28: 1125 | D28: 1150 | F28: ='end area'!E7 -> 6 | G28: ='end area'!I7 -> 30 | J28: =CONCATENATE(K26, " X 30 POUNDS =") -> 15.228 X 30 POUNDS = | K28: =ROUND((K26*30),1) -> 456.8 | L28: POUNDS = | M28: =ROUND(K28/2000,2) -> 0.23 | N28: TONS | P28: ITEM 659 - INTER-SEEDING = | S28: =R25 -> 85 | T28: SQ YD
A29: ='sht mgr'!I26 -> P.25 | B29: 2 | C29: 1150 | D29: 1175 | F29: ='end area'!E8 -> 10 | G29: ='end area'!I8 -> 48
A30: =A29&"-"&A31 -> P.25-P.26 | B30: 2 | C30: 1175 | D30: 1200 | E30: ='end area'!G9 -> 1 | F30: ='end area'!E9 -> 6 | G30: ='end area'!I9 -> 50 | J30: TOTAL CARRIED TO GENERAL SUMMARY:
A31: ='sht mgr'!I27 -> P.26 | B31: 2 | C31: 1200 | D31: 1225 | E31: ='end area'!G10 -> 1 | F31: ='end area'!E10 -> 3 | G31: ='end area'!I10 -> 36 | J31: ITEM 659 - COMMERCIAL FERTILIZER = | M31: =M28 -> 0.23 | N31: TON | P31: ITEM 659 - WATER:
A32: =A31&"-"&A33 -> P.26-P.27 | B32: 2 | C32: 1225 | D32: 1250 | F32: ='end area'!E11 -> 4 | G32: ='end area'!I11 -> 25 | P32: THE APPLICATION RATE FOR THIS ITEM IS
A33: ='sht mgr'!I28 -> P.27 | B33: 2 | C33: 1250 | D33: 1275 | F33: ='end area'!E12 -> 5 | G33: ='end area'!I12 -> 35 | P33: 2 APPLICATIONS OF 300 GALLONS PER 1000
A34: =A33 -> P.27 | B34: 2 | C34: 1275 | D34: 1300 | F34: ='end area'!E13 -> 5 | G34: ='end area'!I13 -> 47 | J34: ITEM 659 - LIME: | P34: SQ FT OF SEEDING
A35: =A34&"-"&A36 -> P.27-P.28 | B35: 2 | C35: 1300 | D35: 1325 | F35: ='end area'!E14 -> 4 | G35: ='end area'!I14 -> 45 | J35: THE APPLICATION RATE FOR THIS ITEM IS
A36: ='sht mgr'!I29 -> P.28 | B36: 2 | C36: 1325 | D36: 1350 | F36: ='end area'!E15 -> 4 | G36: ='end area'!I15 -> 44 | J36: BASED ON THE AREA OF SEEDING. | P36: =G47 -> 1692 | Q36: SQ YD OF SEEDING AND
A37: =A36 -> P.28 | B37: 2 | C37: 1350 | D37: 1375 | F37: ='end area'!E16 -> 2 | G37: ='end area'!I16 -> 34 | Q37: MULCHING (FROM TABLE)
A38: =A36 -> P.28 | B38: 2 | C38: =D37 -> 1375 | D38: =Plan!F22 -> 1403.9 | F38: ='end area'!E17 -> 1 | G38: ='end area'!I17 -> 22 | J38: =G47 -> 1692 | K38: SQ YD OF SEEDING AND | P38: =CONCATENATE(P36, " X 9 SQ FT / SQ YD =") -> 1692 X 9 SQ FT / SQ YD = | S38: =P36*9 -> 15228 | T38: SQ FT
K39: MULCHING (FROM TABLE)
J40: =CONCATENATE(J38, " X 9 SQ FT / SQ YD =") -> 1692 X 9 SQ FT / SQ YD = | L40: =J38*9 -> 15228 | M40: SQ FT | P40: =CONCATENATE(S38, " / 1,000 =") -> 15228 / 1,000 = | R40: =ROUND((S38/1000),1) -> 15.2
J42: =CONCATENATE(L40, " / 43,560 SQ FT / ACRE =") -> 15228 / 43,560 SQ FT / ACRE = | M42: =ROUND((L40/43560),2) -> 0.35 | N42: ACRE | P42: =CONCATENATE(R40, " X 300 GAL. X 2 =") -> 15.2 X 300 GAL. X 2 = | R42: =ROUND((R40*300*2),0) -> 9120 | S42: GALLONS = | T42: =ROUND((R42/1000),2) -> 9.12
J44: TOTAL CARRIED TO GENERAL SUMMARY: | P44: TOTAL CARRIED TO GENERAL SUMMARY:
J45: ITEM 659 - LIME = | M45: =M42 -> 0.35 | N45: ACRE | P45: ITEM 659 - WATER = | S45: =T42 -> 9.12 | T45: M GAL
A47: TOTALS CARRIED TO GENERAL SUMMARY | E47: =SUM(E6:E46) -> 133 | F47: =SUM(F6:F46) -> 174 | G47: =SUM(G6:G46) -> 1692

Sheet end area
B1: station | C1: length | D1: area | E1: embank | F1: area | G1: excavate | H1: seeding length | I1: area
A2: loc 2 | B2: 1025 | H2: 6
B3: 1050 | C3: =B3-B2 -> 25 | D3: 0.4 | E3: =ROUNDUP((D3+D2)/2*C3/27,0) -> 1 | G3: =ROUNDUP((F3+F2)/2*C3/27,0) -> 0 | H3: 6.3 | I3: =ROUNDUP(((H3+H2)/2)*C3/9,0) -> 18
B4: 1075 | C4: =B4-B3 -> 25 | D4: 1.1 | E4: =ROUNDUP((D4+D3)/2*C4/27,0) -> 1 | G4: =ROUNDUP((F4+F3)/2*C4/27,0) -> 0 | H4: 8.3 | I4: =ROUNDUP(((H4+H3)/2)*C4/9,0) -> 21
B5: 1100 | C5: =B5-B4 -> 25 | D5: 1 | E5: 1 | G5: 0 | H5: 6.5 | I5: 21
B6: 1125 | C6: 25 | D6: 1 | E6: 1 | G6: 0 | H6: 7 | I6: 19
B7: 1150 | C7: 25 | D7: 11.5 | E7: 6 | G7: 0 | H7: 14.2 | I7: 30
B8: 1175 | C8: 25 | D8: 8.8 | E8: 10 | G8: 0 | H8: 20.2 | I8: 48
B9: 1200 | C9: 25 | D9: 4 | E9: 6 | F9: 0.5 | G9: 1 | H9: 15.7 | I9: 50
B10: 1225 | C10: 25 | D10: 2.4 | E10: 3 | G10: 1 | H10: 9.6 | I10: 36
B11: 1250 | C11: 25 | D11: 5.6 | E11: 4 | G11: 0 | H11: 7.9 | I11: 25
B12: 1275 | C12: 25 | D12: 4.7 | E12: 5 | G12: 0 | H12: 16.8 | I12: 35
B13: 1300 | C13: 25 | D13: 5.2 | E13: 5 | G13: 0 | H13: 16.7 | I13: 47
B14: 1325 | C14: 25 | D14: 3.2 | E14: 4 | G14: 0 | H14: 15.2 | I14: 45
B15: 1350 | C15: 25 | D15: 3.3 | E15: 4 | G15: 0 | H15: 16.3 | I15: 44
B16: 1375 | C16: 25 | D16: 1 | E16: 2 | G16: 0 | H16: 7.7 | I16: 34
B17: 1400 | C17: =B17-B16 -> 25 | D17: 1 | E17: =ROUNDUP((D17+D16)/2*C17/27,0) -> 1 | G17: 0 | H17: 7.7 | I17: =ROUNDUP(((H17+H16)/2)*C17/9,0) -> 22
A19: loc 1 | B19: 100
B20: 125 | C20: 25 | D20: 0.98 | E20: 1 | F20: 0.34 | G20: 1 | H20: 9.5 | I20: 14
B21: 150 | C21: 25 | D21: 0.97 | E21: 1 | F21: 15.1 | G21: 8 | H21: 26.4 | I21: 50
B22: 175 | C22: 25 | D22: 1.8 | E22: 2 | F22: 16.4 | G22: 15 | H22: 26.9 | I22: 75
B23: 200 | C23: 25 | D23: 3.8 | E23: 3 | F23: 25.25 | G23: 20 | H23: =2.4+2+16.4+7.8+9+5.9 -> 43.5 | I23: 98
B24: 225 | C24: 25 | D24: =4.7+0.6 -> 5.3 | E24: 5 | F24: =21.3 -> 21.3 | G24: 22 | H24: =8.8+3.9+7.9+2.5+2+13.4 -> 38.5 | I24: 114
B25: 250 | C25: 25 | D25: 11.9 | E25: 8 | F25: 0.2 | G25: 10 | H25: =9.1+5.5+4.4 -> 19 | I25: 80
B26: 275 | C26: 25 | D26: 3.7 | E26: 8 | F26: 0 | G26: 1 | H26: 15.1 | I26: 48
B27: 300 | C27: 25 | D27: =3.9+4.1 -> 8 | E27: 6 | F27: 0 | G27: 0 | H27: =7.7+7.4 -> 15.1 | I27: 42
B28: 325 | C28: 25 | D28: =9.1+2.7 -> 11.8 | E28: 10 | F28: =5.8 -> 5.8 | G28: 3 | H28: =8.8+4.5+22.1+3.1 -> 38.5 | I28: 75
B29: 350 | C29: 25 | D29: =8+2 -> 10 | E29: 11 | F29: =13.97 -> 13.97 | G29: 10 | H29: =7.4+5.6+4.4+17.5+3.8+2 -> 40.7 | I29: 110
B30: 375 | C30: 25 | D30: =6.8+4.1 -> 10.9 | E30: 10 | F30: =13.75 -> 13.75 | G30: 13 | H30: =8.4+9.5+8.6+17.2+2+3.3 -> 49 | I30: 125
B31: 400 | C31: 25 | D31: =8.8+6.4 -> 15.2 | E31: 13 | F31: =8.8 -> 8.8 | G31: 11 | H31: =8.2+10.1+9.1+15.9+2+3.3 -> 48.6 | I31: 136
B32: 425 | C32: 25 | D32: =13.3 -> 13.3 | E32: 14 | F32: =13.6 -> 13.6 | G32: 11 | H32: =9.8+10.8+11.4+1 -> 33 | I32: 114
B33: 450 | C33: 25 | D33: =12.1+6.5 -> 18.6 | E33: 15 | F33: 0 | G33: 7 | H33: =2.8+11.9+0 -> 14.7 | I33: 67
B34: 467.44 | C34: 17.44 | D34: =6.5+12.8 -> 19.3 | E34: 13 | F34: 0 | G34: 0 | H34: =12.8+3.1+19.3 -> 35.2 | I34: 49

Sheet XS (1)
A1: ='end area'!B19 -> 100
A2: CUT AREA (SF): | B2: =VLOOKUP($A$1,'end area'!$B$19:$I$34,5) -> 0 | C2: CUT VOLUME (CY): | D2: =VLOOKUP($A$1,'end area'!$B$19:$I$34,6) -> 0
A3: FILL AREA (SF): | B3: =VLOOKUP($A$1,'end area'!$B$19:$I$34,3) -> 0 | C3: FILL VOLUME (CY): | D3: =VLOOKUP($A$1,'end area'!$B$19:$I$34,4) -> 0
A4: SEED WIDTH (FT): | B4: =VLOOKUP($A$1,'end area'!$B$19:$I$34,7) -> 0 | C4: SEED AREA (SY): | D4: =VLOOKUP($A$1,'end area'!$B$19:$I$34,8) -> 0
A6: =A1+25 -> 125
A7: CUT AREA (SF): | B7: =VLOOKUP(A6,'end area'!$B$19:$I$34,5) -> 0.34 | C7: CUT VOLUME (CY): | D7: =VLOOKUP(A6,'end area'!$B$19:$I$34,6) -> 1
A8: FILL AREA (SF): | B8: =VLOOKUP(A6,'end area'!$B$19:$I$34,3) -> 0.98 | C8: FILL VOLUME (CY): | D8: =VLOOKUP(A6,'end area'!$B$19:$I$34,4) -> 1
A9: SEED WIDTH (FT): | B9: =VLOOKUP(A6,'end area'!$B$19:$I$34,7) -> 9.5 | C9: SEED AREA (SY): | D9: =VLOOKUP(A6,'end area'!$B$19:$I$34,8) -> 14
A11: =A6+25 -> 150
A12: CUT AREA (SF): | B12: =VLOOKUP(A11,'end area'!$B$19:$I$34,5) -> 15.1 | C12: CUT VOLUME (CY): | D12: =VLOOKUP(A11,'end area'!$B$19:$I$34,6) -> 8
A13: FILL AREA (SF): | B13: =VLOOKUP(A11,'end area'!$B$19:$I$34,3) -> 0.97 | C13: FILL VOLUME (CY): | D13: =VLOOKUP(A11,'end area'!$B$19:$I$34,4) -> 1
A14: SEED WIDTH (FT): | B14: =VLOOKUP(A11,'end area'!$B$19:$I$34,7) -> 26.4 | C14: SEED AREA (SY): | D14: =VLOOKUP(A11,'end area'!$B$19:$I$34,8) -> 50
A16: =A11+25 -> 175
A17: CUT AREA (SF): | B17: =VLOOKUP(A16,'end area'!$B$19:$I$34,5) -> 16.4 | C17: CUT VOLUME (CY): | D17: =VLOOKUP(A16,'end area'!$B$19:$I$34,6) -> 15
A18: FILL AREA (SF): | B18: =VLOOKUP(A16,'end area'!$B$19:$I$34,3) -> 1.8 | C18: FILL VOLUME (CY): | D18: =VLOOKUP(A16,'end area'!$B$19:$I$34,4) -> 2
A19: SEED WIDTH (FT): | B19: =VLOOKUP(A16,'end area'!$B$19:$I$34,7) -> 26.9 | C19: SEED AREA (SY): | D19: =VLOOKUP(A16,'end area'!$B$19:$I$34,8) -> 75
A21: =A16+25 -> 200
A22: CUT AREA (SF): | B22: =VLOOKUP(A21,'end area'!$B$19:$I$34,5) -> 25.25 | C22: CUT VOLUME (CY): | D22: =VLOOKUP(A21,'end area'!$B$19:$I$34,6) -> 20
A23: FILL AREA (SF): | B23: =VLOOKUP(A21,'end area'!$B$19:$I$34,3) -> 3.8 | C23: FILL VOLUME (CY): | D23: =VLOOKUP(A21,'end area'!$B$19:$I$34,4) -> 3
A24: SEED WIDTH (FT): | B24: =VLOOKUP(A21,'end area'!$B$19:$I$34,7) -> 43.5 | C24: SEED AREA (SY): | D24: =VLOOKUP(A21,'end area'!$B$19:$I$34,8) -> 98
A26: =A21+25 -> 225
A27: CUT AREA (SF): | B27: =VLOOKUP(A26,'end area'!$B$19:$I$34,5) -> 21.3 | C27: CUT VOLUME (CY): | D27: =VLOOKUP(A26,'end area'!$B$19:$I$34,6) -> 22
A28: FILL AREA (SF): | B28: =VLOOKUP(A26,'end area'!$B$19:$I$34,3) -> 5.3 | C28: FILL VOLUME (CY): | D28: =VLOOKUP(A26,'end area'!$B$19:$I$34,4) -> 5
A29: SEED WIDTH (FT): | B29: =VLOOKUP(A26,'end area'!$B$19:$I$34,7) -> 38.5 | C29: SEED AREA (SY): | D29: =VLOOKUP(A26,'end area'!$B$19:$I$34,8) -> 114
A31: =A26+25 -> 250
A32: CUT AREA (SF): | B32: =VLOOKUP(A31,'end area'!$B$19:$I$34,5) -> 0.2 | C32: CUT VOLUME (CY): | D32: =VLOOKUP(A31,'end area'!$B$19:$I$34,6) -> 10
A33: FILL AREA (SF): | B33: =VLOOKUP(A31,'end area'!$B$19:$I$34,3) -> 11.9 | C33: FILL VOLUME (CY): | D33: =VLOOKUP(A31,'end area'!$B$19:$I$34,4) -> 8
A34: SEED WIDTH (FT): | B34: =VLOOKUP(A31,'end area'!$B$19:$I$34,7) -> 19 | C34: SEED AREA (SY): | D34: =VLOOKUP(A31,'end area'!$B$19:$I$34,8) -> 80
A36: =A31+25 -> 275
A37: CUT AREA (SF): | C37: CUT VOLUME (CY): | D37: =VLOOKUP(A36,'end area'!$B$19:$I$34,6) -> 1
A38: FILL AREA (SF): | B38: =VLOOKUP(A36,'end area'!$B$19:$I$34,3) -> 3.7 | C38: FILL VOLUME (CY): | D38: =VLOOKUP(A36,'end area'!$B$19:$I$34,4) -> 8
A39: SEED WIDTH (FT): | B39: =VLOOKUP(A36,'end area'!$B$19:$I$34,7) -> 15.1 | C39: SEED AREA (SY): | D39: =VLOOKUP(A36,'end area'!$B$19:$I$34,8) -> 48
A41: =A36+25 -> 300
A42: CUT AREA (SF): | C42: CUT VOLUME (CY):
A43: FILL AREA (SF): | B43: =VLOOKUP(A41,'end area'!$B$19:$I$34,3) -> 8 | C43: FILL VOLUME (CY): | D43: =VLOOKUP(A41,'end area'!$B$19:$I$34,4) -> 6
A44: SEED WIDTH (FT): | B44: =VLOOKUP(A41,'end area'!$B$19:$I$34,7) -> 15.1 | C44: SEED AREA (SY): | D44: =VLOOKUP(A41,'end area'!$B$19:$I$34,8) -> 42
A46: =A41+25 -> 325
A47: CUT AREA (SF): | B47: =VLOOKUP(A46,'end area'!$B$19:$I$34,5) -> 5.8 | C47: CUT VOLUME (CY): | D47: =VLOOKUP(A46,'end area'!$B$19:$I$34,6) -> 3
A48: FILL AREA (SF): | B48: =VLOOKUP(A46,'end area'!$B$19:$I$34,3) -> 11.8 | C48: FILL VOLUME (CY): | D48: =VLOOKUP(A46,'end area'!$B$19:$I$34,4) -> 10
A49: SEED WIDTH (FT): | B49: =VLOOKUP(A46,'end area'!$B$19:$I$34,7) -> 38.5 | C49: SEED AREA (SY): | D49: =VLOOKUP(A46,'end area'!$B$19:$I$34,8) -> 75
A51: =A46+25 -> 350
A52: CUT AREA (SF): | B52: =VLOOKUP(A51,'end area'!$B$19:$I$34,5) -> 13.97 | C52: CUT VOLUME (CY): | D52: =VLOOKUP(A51,'end area'!$B$19:$I$34,6) -> 10
A53: FILL AREA (SF): | B53: =VLOOKUP(A51,'end area'!$B$19:$I$34,3) -> 10 | C53: FILL VOLUME (CY): | D53: =VLOOKUP(A51,'end area'!$B$19:$I$34,4) -> 11
A54: SEED WIDTH (FT): | B54: =VLOOKUP(A51,'end area'!$B$19:$I$34,7) -> 40.7 | C54: SEED AREA (SY): | D54: =VLOOKUP(A51,'end area'!$B$19:$I$34,8) -> 110
A56: =A51+25 -> 375
A57: CUT AREA (SF): | B57: =VLOOKUP(A56,'end area'!$B$19:$I$34,5) -> 13.75 | C57: CUT VOLUME (CY): | D57: =VLOOKUP(A56,'end area'!$B$19:$I$34,6) -> 13
A58: FILL AREA (SF): | B58: =VLOOKUP(A56,'end area'!$B$19:$I$34,3) -> 10.9 | C58: FILL VOLUME (CY): | D58: =VLOOKUP(A56,'end area'!$B$19:$I$34,4) -> 10
A59: SEED WIDTH (FT): | B59: =VLOOKUP(A56,'end area'!$B$19:$I$34,7) -> 49 | C59: SEED AREA (SY): | D59: =VLOOKUP(A56,'end area'!$B$19:$I$34,8) -> 125
A61: =A56+25 -> 400
A62: CUT AREA (SF): | B62: =VLOOKUP(A61,'end area'!$B$19:$I$34,5) -> 8.8 | C62: CUT VOLUME (CY): | D62: =VLOOKUP(A61,'end area'!$B$19:$I$34,6) -> 11
A63: FILL AREA (SF): | B63: =VLOOKUP(A61,'end area'!$B$19:$I$34,3) -> 15.2 | C63: FILL VOLUME (CY): | D63: =VLOOKUP(A61,'end area'!$B$19:$I$34,4) -> 13
A64: SEED WIDTH (FT): | B64: =VLOOKUP(A61,'end area'!$B$19:$I$34,7) -> 48.6 | C64: SEED AREA (SY): | D64: =VLOOKUP(A61,'end area'!$B$19:$I$34,8) -> 136
A66: =A61+25 -> 425
A67: CUT AREA (SF): | B67: =VLOOKUP(A66,'end area'!$B$19:$I$34,5) -> 13.6 | C67: CUT VOLUME (CY): | D67: =VLOOKUP(A66,'end area'!$B$19:$I$34,6) -> 11
A68: FILL AREA (SF): | B68: =VLOOKUP(A66,'end area'!$B$19:$I$34,3) -> 13.3 | C68: FILL VOLUME (CY): | D68: =VLOOKUP(A66,'end area'!$B$19:$I$34,4) -> 14
A69: SEED WIDTH (FT): | B69: =VLOOKUP(A66,'end area'!$B$19:$I$34,7) -> 33 | C69: SEED AREA (SY): | D69: =VLOOKUP(A66,'end area'!$B$19:$I$34,8) -> 114
A71: =A66+25 -> 450
A72: CUT AREA (SF): | C72: CUT VOLUME (CY): | D72: =VLOOKUP(A71,'end area'!$B$19:$I$34,6) -> 7
A73: FILL AREA (SF): | B73: =VLOOKUP(A71,'end area'!$B$19:$I$34,3) -> 18.6 | C73: FILL VOLUME (CY): | D73: =VLOOKUP(A71,'end area'!$B$19:$I$34,4) -> 15
A74: SEED WIDTH (FT): | B74: =VLOOKUP(A71,'end area'!$B$19:$I$34,7) -> 14.7 | C74: SEED AREA (SY): | D74: =VLOOKUP(A71,'end area'!$B$19:$I$34,8) -> 67
A76: ='end area'!B34 -> 467.44
A77: CUT AREA (SF): | C77: CUT VOLUME (CY):
A78: FILL AREA (SF): | B78: =VLOOKUP(A76,'end area'!$B$19:$I$34,3) -> 19.3 | C78: FILL VOLUME (CY): | D78: =VLOOKUP(A76,'end area'!$B$19:$I$34,4) -> 13
A79: SEED WIDTH (FT): | B79: =VLOOKUP(A76,'end area'!$B$19:$I$34,7) -> 35.2 | C79: SEED AREA (SY): | D79: =VLOOKUP(A76,'end area'!$B$19:$I$34,8) -> 49

Sheet XS
A1: ='end area'!B3 -> 1050
A2: CUT AREA (SF): | C2: CUT VOLUME (CY):
A3: FILL AREA (SF): | B3: =VLOOKUP(XS!A1,'end area'!$B$2:$I$17,3) -> 0.4 | C3: FILL VOLUME (CY): | D3: =VLOOKUP(XS!A1,'end area'!$B$2:$I$17,4) -> 1
A4: SEED WIDTH (FT): | B4: =VLOOKUP(XS!A1,'end area'!$B$2:$I$17,7) -> 6.3 | C4: SEED AREA (SY): | D4: =VLOOKUP(XS!A1,'end area'!$B$2:$I$17,8) -> 18
A6: =A1+25 -> 1075
A7: CUT AREA (SF): | C7: CUT VOLUME (CY):
A8: FILL AREA (SF): | B8: =VLOOKUP(XS!A6,'end area'!$B$2:$I$17,3) -> 1.1 | C8: FILL VOLUME (CY): | D8: =VLOOKUP(XS!A6,'end area'!$B$2:$I$17,4) -> 1
A9: SEED WIDTH (FT): | B9: =VLOOKUP(XS!A6,'end area'!$B$2:$I$17,7) -> 8.3 | C9: SEED AREA (SY): | D9: =VLOOKUP(XS!A6,'end area'!$B$2:$I$17,8) -> 21
A11: =A6+25 -> 1100
A12: CUT AREA (SF): | C12: CUT VOLUME (CY):
A13: FILL AREA (SF): | B13: =VLOOKUP(XS!A11,'end area'!$B$2:$I$17,3) -> 1 | C13: FILL VOLUME (CY): | D13: =VLOOKUP(XS!A11,'end area'!$B$2:$I$17,4) -> 1
A14: SEED WIDTH (FT): | B14: =VLOOKUP(XS!A11,'end area'!$B$2:$I$17,7) -> 6.5 | C14: SEED AREA (SY): | D14: =VLOOKUP(XS!A11,'end area'!$B$2:$I$17,8) -> 21
A16: =A11+25 -> 1125
A17: CUT AREA (SF): | C17: CUT VOLUME (CY):
A18: FILL AREA (SF): | B18: =VLOOKUP(XS!A16,'end area'!$B$2:$I$17,3) -> 1 | C18: FILL VOLUME (CY): | D18: =VLOOKUP(XS!A16,'end area'!$B$2:$I$17,4) -> 1
A19: SEED WIDTH (FT): | B19: =VLOOKUP(XS!A16,'end area'!$B$2:$I$17,7) -> 7 | C19: SEED AREA (SY): | D19: =VLOOKUP(XS!A16,'end area'!$B$2:$I$17,8) -> 19
A21: =A16+25 -> 1150
A22: CUT AREA (SF): | C22: CUT VOLUME (CY):
A23: FILL AREA (SF): | B23: =VLOOKUP(XS!A21,'end area'!$B$2:$I$17,3) -> 11.5 | C23: FILL VOLUME (CY): | D23: =VLOOKUP(XS!A21,'end area'!$B$2:$I$17,4) -> 6
A24: SEED WIDTH (FT): | B24: =VLOOKUP(XS!A21,'end area'!$B$2:$I$17,7) -> 14.2 | C24: SEED AREA (SY): | D24: =VLOOKUP(XS!A21,'end area'!$B$2:$I$17,8) -> 30
A26: =A21+25 -> 1175
A27: CUT AREA (SF): | C27: CUT VOLUME (CY):
A28: FILL AREA (SF): | B28: =VLOOKUP(XS!A26,'end area'!$B$2:$I$17,3) -> 8.8 | C28: FILL VOLUME (CY): | D28: =VLOOKUP(XS!A26,'end area'!$B$2:$I$17,4) -> 10
A29: SEED WIDTH (FT): | B29: =VLOOKUP(XS!A26,'end area'!$B$2:$I$17,7) -> 20.2 | C29: SEED AREA (SY): | D29: =VLOOKUP(XS!A26,'end area'!$B$2:$I$17,8) -> 48
A31: =A26+25 -> 1200
A32: CUT AREA (SF): | B32: =VLOOKUP(XS!A31,'end area'!$B$2:$I$17,5) -> 0.5 | C32: CUT VOLUME (CY): | D32: =VLOOKUP(XS!A31,'end area'!$B$2:$I$17,6) -> 1
A33: FILL AREA (SF): | B33: =VLOOKUP(XS!A31,'end area'!$B$2:$I$17,3) -> 4 | C33: FILL VOLUME (CY): | D33: =VLOOKUP(XS!A31,'end area'!$B$2:$I$17,4) -> 6
A34: SEED WIDTH (FT): | B34: =VLOOKUP(XS!A31,'end area'!$B$2:$I$17,7) -> 15.7 | C34: SEED AREA (SY): | D34: =VLOOKUP(XS!A31,'end area'!$B$2:$I$17,8) -> 50
A36: =A31+25 -> 1225
A37: CUT AREA (SF): | C37: CUT VOLUME (CY): | D37: =VLOOKUP(XS!A36,'end area'!$B$2:$I$17,6) -> 1
A38: FILL AREA (SF): | B38: =VLOOKUP(XS!A36,'end area'!$B$2:$I$17,3) -> 2.4 | C38: FILL VOLUME (CY): | D38: =VLOOKUP(XS!A36,'end area'!$B$2:$I$17,4) -> 3
A39: SEED WIDTH (FT): | B39: =VLOOKUP(XS!A36,'end area'!$B$2:$I$17,7) -> 9.6 | C39: SEED AREA (SY): | D39: =VLOOKUP(XS!A36,'end area'!$B$2:$I$17,8) -> 36
A41: =A36+25 -> 1250
A42: CUT AREA (SF): | C42: CUT VOLUME (CY):
A43: FILL AREA (SF): | B43: =VLOOKUP(XS!A41,'end area'!$B$2:$I$17,3) -> 5.6 | C43: FILL VOLUME (CY): | D43: =VLOOKUP(XS!A41,'end area'!$B$2:$I$17,4) -> 4
A44: SEED WIDTH (FT): | B44: =VLOOKUP(XS!A41,'end area'!$B$2:$I$17,7) -> 7.9 | C44: SEED AREA (SY): | D44: =VLOOKUP(XS!A41,'end area'!$B$2:$I$17,8) -> 25
A46: =A41+25 -> 1275
A47: CUT AREA (SF): | C47: CUT VOLUME (CY):
A48: FILL AREA (SF): | B48: =VLOOKUP(XS!A46,'end area'!$B$2:$I$17,3) -> 4.7 | C48: FILL VOLUME (CY): | D48: =VLOOKUP(XS!A46,'end area'!$B$2:$I$17,4) -> 5
A49: SEED WIDTH (FT): | B49: =VLOOKUP(XS!A46,'end area'!$B$2:$I$17,7) -> 16.8 | C49: SEED AREA (SY): | D49: =VLOOKUP(XS!A46,'end area'!$B$2:$I$17,8) -> 35
A51: =A46+25 -> 1300
A52: CUT AREA (SF): | C52: CUT VOLUME (CY):
A53: FILL AREA (SF): | B53: =VLOOKUP(XS!A51,'end area'!$B$2:$I$17,3) -> 5.2 | C53: FILL VOLUME (CY): | D53: =VLOOKUP(XS!A51,'end area'!$B$2:$I$17,4) -> 5
A54: SEED WIDTH (FT): | B54: =VLOOKUP(XS!A51,'end area'!$B$2:$I$17,7) -> 16.7 | C54: SEED AREA (SY): | D54: =VLOOKUP(XS!A51,'end area'!$B$2:$I$17,8) -> 47
A56: =A51+25 -> 1325
A57: CUT AREA (SF): | C57: CUT VOLUME (CY):
A58: FILL AREA (SF): | B58: =VLOOKUP(XS!A56,'end area'!$B$2:$I$17,3) -> 3.2 | C58: FILL VOLUME (CY): | D58: =VLOOKUP(XS!A56,'end area'!$B$2:$I$17,4) -> 4
A59: SEED WIDTH (FT): | B59: =VLOOKUP(XS!A56,'end area'!$B$2:$I$17,7) -> 15.2 | C59: SEED AREA (SY): | D59: =VLOOKUP(XS!A56,'end area'!$B$2:$I$17,8) -> 45
A61: =A56+25 -> 1350
A62: CUT AREA (SF): | C62: CUT VOLUME (CY):
A63: FILL AREA (SF): | B63: =VLOOKUP(XS!A61,'end area'!$B$2:$I$17,3) -> 3.3 | C63: FILL VOLUME (CY): | D63: =VLOOKUP(XS!A61,'end area'!$B$2:$I$17,4) -> 4
A64: SEED WIDTH (FT): | B64: =VLOOKUP(XS!A61,'end area'!$B$2:$I$17,7) -> 16.3 | C64: SEED AREA (SY): | D64: =VLOOKUP(XS!A61,'end area'!$B$2:$I$17,8) -> 44
A66: =A61+25 -> 1375
A67: CUT AREA (SF): | C67: CUT VOLUME (CY):
A68: FILL AREA (SF): | B68: =VLOOKUP(XS!A66,'end area'!$B$2:$I$17,3) -> 1 | C68: FILL VOLUME (CY): | D68: =VLOOKUP(XS!A66,'end area'!$B$2:$I$17,4) -> 2
A69: SEED WIDTH (FT): | B69: =VLOOKUP(XS!A66,'end area'!$B$2:$I$17,7) -> 7.7 | C69: SEED AREA (SY): | D69: =VLOOKUP(XS!A66,'end area'!$B$2:$I$17,8) -> 34

Sheet 0811 Bridge
A1: ESTIMATED QUANTITIES
A2: ITEM | B2: QUANTITY | C2: UNIT | D2: DESCRIPTION
A3: 201E11000 | B3: LS | D3: CLEARING AND GRUBBING
A4: 202E11000 | B4: LS | D4: STRUCTURE REMOVED
A5: 503E11100 | B5: LS | D5: COFFERDAMS AND EXCAVATION BRACING
A6: 503E21300 | B6: LS | D6: UNCLASSIFIED EXCAVATION
A7: 509E10000 | B7: 4235 | C7: LB | D7: EPOXY COATED STEEL REINFORCEMENT
A9: 511E46510 | B9: 55 | C9: CY | D9: CLASS QC1 CONCRETE, FOOTING
A10: 511E46610 | B10: 1 | C10: CY | D10: CLASS QC1 CONCRETE, HEADWALL
A11: 512E10050 | B11: 94 | C11: SY | D11: SEALING OF CONCRETE SURFACES (NON-EPOXY)
A12: 512E33000 | B12: 112 | C12: SY | D12: TYPE 2 WATERPROOFING
A13: 512E33010 | B13: 115 | C13: SY | D13: TYPE 3 WATERPROOFING
A15: 516E13601 | B15: 42 | C15: SF | D15: 1" PREFORMED EXPANSION JOINT FILLER, AS PER PLAN
A16: 518E21200 | B16: 29 | C16: CY | D16: POROUS BACKFILL WITH GEOTEXTILE FABRIC
A17: 601E11000 | B17: 23 | C17: SY | D17: RIPRAP, TYPE D
A18: 601E32100 | B18: 100 | C18: CY | D18: ROCK CHANNEL PROTECTION, TYPE B WITH FILTER
A19: 611E96470 | B19: 48 | C19: FT | D19: 18' X 7' CONDUIT, TYPE A, 706.05
A21: 851E10000 | B21: 564 | C21: SF | D21: PRECAST GRAVITY AND SEMIGRAVITY RETAINING WALL
A22: ="QUANTITIES HAVE BEEN CARRIED TO THE PLAN GENERAL SUMMARY ON SHEETS "&'sht mgr'!I11&"-"&'sht mgr'!I12 -> QUANTITIES HAVE BEEN CARRIED TO THE PLAN GENERAL SUMMARY ON SHEETS P.10-P.11

Sheet 2062 Bridge
A1: ESTIMATED QUANTITIES
A2: ITEM | B2: QUANTITY | C2: UNIT | D2: DESCRIPTION
A3: 201E11000 | B3: LS | D3: CLEARING AND GRUBBING
A4: 202E11000 | B4: LS | D4: STRUCTURE REMOVED
A5: 503E11100 | B5: LS | D5: COFFERDAMS AND EXCAVATION BRACING
A6: 503E21300 | B6: LS | D6: UNCLASSIFIED EXCAVATION
A7: 503E21101 | B7: =ROUNDUP((8-1.5+1)*2*53.9/27,0)*2 -> 60 | C7: CY | D7: UNCLASSIFIED EXCAVATION, AS PER PLAN
A9: 509E10000 | B9: =ROUND('[5]FINAL FORMAT'!$E$63,0) -> 5176 | C9: LB | D9: EPOXY COATED STEEL REINFORCEMENT
A10: 511E46510 | B10: =ROUND((54.17*2*1.5*2+54.17*8*2*2+16*4*1*2+16*0.5*2)/27,0) -> 82 | C10: CY | D10: CLASS QC1 CONCRETE, FOOTING
A11: 511E46610 | B11: 1 | C11: CY | D11: CLASS QC1 CONCRETE, HEADWALL
A12: 512E10050 | B12: =ROUNDUP((44*2*2+3.25*16*2+90.25*4+21.24*0.5*4+1.25*16*4+0.5*16*4)/9,0) -> 89 | C12: SY | D12: SEALING OF CONCRETE SURFACES (NON-EPOXY)
A13: 512E33000 | B13: =ROUND(10*39.5*2/9,0)+ROUND(3*10*4/9,0) -> 101 | C13: SY | D13: TYPE 2 WATERPROOFING
A15: 512E33010 | B15: =ROUND(16*39.5/9+1*39.5*2/9+0.5*16*2/9,0) -> 81 | C15: SY | D15: TYPE 3 WATERPROOFING
A16: 516E13601 | B16: =ROUND(10.5*1.25*4,0) -> 53 | C16: SF | D16: 1" PREFORMED EXPANSION JOINT FILLER, AS PER PLAN
A17: 518E21200 | B17: =ROUND(19*2*9.5*4/27,0) -> 53 | C17: CY | D17: POROUS BACKFILL WITH GEOTEXTILE FABRIC
A18: 601E11000 | B18: =ROUNDUP(16*5.75/9,0) -> 11 | C18: SY | D18: RIPRAP, TYPE D
A19: 601E32100 | B19: =9+10+71 -> 90 | C19: CY | D19: ROCK CHANNEL PROTECTION, TYPE B WITH FILTER
A21: 605E11000 | B21: 120 | C21: FT | D21: 6" CONSTRUCTION UNDERDRAINS
A22: 611E96330 | B22: 42 | C22: FT | D22: 14' X 8' CONDUIT, TYPE A, 706.05
A23: 851E10000 | B23: =ROUNDUP(19.08*10.5*4,0) -> 802 | C23: SF | D23: PRECAST GRAVITY AND SEMIGRAVITY RETAINING WALL
A24: ="QUANTITIES HAVE BEEN CARRIED TO THE PLAN GENERAL SUMMARY ON SHEETS "&'sht mgr'!I11&"-"&'sht mgr'!I12 -> QUANTITIES HAVE BEEN CARRIED TO THE PLAN GENERAL SUMMARY ON SHEETS P.10-P.11

Sheet HW RT
A3: invert | B3: top of wall grading (3:1 from invert) | D3: northern RT wall | E3: length
A4: 1238.4 | B4: =A4+E4*0.33333 -> 1244.06661 | D4: =1248.89-0.016*12-0.04*3-7*0.08-12.351*0.3333 -> 1243.901412 | E4: 17
A6: invert | B6: top of wall grading (3:1 from invert) | D6: southern RT wall
A7: 1238.4 | B7: =A7+E7*0.33333 -> 1243.39995 | D7: =1249.45-0.016*12-0.04*3-7*0.08-16.837*0.3333 -> 1242.966228 | E7: 15
A10: invert | B10: top of wall grading (3:1 from invert) | D10: northern LT wall | E10: length
A11: 1238.4 | B11: =A11+E11*0.33333 -> 1238.4
A13: invert | B13: top of wall grading (3:1 from invert) | D13: southern LT wall
A14: 1238.4 | B14: =A14+E14*0.33333 -> 1244.06661 | D14: =1249.58-0.016*12-0.04*3-7*0.08-16.837*0.3333 -> 1243.096228 | E14: 17
